Cogmind - Beta 16.1 @@@ ROGUE MODE // 2026.04.21 @ 05:15:44 Player: spider Result: Destroyed 0b10! Performance ------------- Evolutions (9) 4500 Regions Visited (32) 6400 Robots Destroyed (204) 1020 Value Destroyed (8745) 8745 Prototype IDs (48) 960 Alien Tech Used (13) 2600 Bonus (38679) 38679 TOTAL SCORE: 62904 Bonus ------- Triggered Max Security 2000 High Alert Combat Kills 2039 Follower Combat Kills 2884 Hunted by Unchained 500 Entered DSFs 500 Network Hubs Disabled 200 Registered with UFD 300 Met Optimus in HQ 500 Met Zhirov 300 Met Warlord at Base 500 MAIN.C Attacked Warlord 500 Built Enhanced Grunts 300 Used Core Reset Matrix 3000 Scanned by Researcher 500 Pursued by Intercept 500 Met Sigix 2000 Integrated Exoskeleton 5000 Escaped with Sigix 5000 Met MAIN.C 5000 Destroyed MAIN.C Shell 5000 Win 3000 Friendly Fire -844 Cogmind --------- Core Integrity 577/1600 Matter 290/300 Energy 198/200 System Corruption 0% +Membrane Temperature Cool (0) Movement Walking (30) Location Tau Ceti IV Orbit Parts ------- > --- POWER (1) -------- (None) > --- PROPULSION (3) --- Sigix Exoskeleton > --- UTILITY (7) ------ Medium Storage Unit Improved Cloaking Device Advanced Force Field Microwarp Drive > --- WEAPON (2) ------- Sigix Shearcannon > --- INVENTORY (10) --- Improved Fusion Compressor Sigix Sheargun Sigix Sheargun Sigix Containment Pod Peak State ------------ > --- POWER ------------ Improved Fusion Compressor > --- PROPULSION ------- Sigix Exoskeleton > --- UTILITY ---------- Medium Storage Unit Improved Cloaking Device Advanced Force Field Microwarp Drive > --- WEAPON ----------- Sigix Shearcannon > --- INVENTORY -------- Core Regenerator Subatomic Replicator Sigix Sheargun Sigix Sheargun Sigix Containment Pod [Rating: 262] Favorites ----------- Power Light Ion Engine Engine Light Ion Engine Power Core Neutrino Core Reactor Light Antimatter Reactor Propulsion Light Treads Treads Light Treads Leg Sigix Exoskeleton Wheel Wheel Hover Unit Antigrav Array Flight Unit Nuclear Pulse Thruster Utility High-capacity Storage Unit Device Advanced Gravity Neutralizer Storage High-capacity Storage Unit Processor Enhanced Optical Array Hackware Improved Hacking Suite Protection Medium Regenerative Plating Artifact Microwarp Drive Weapon Battle Cannon Energy Gun Medium Laser Energy Cannon Subdweller Beam Cannon Ballistic Gun Subdweller Machine Gun Ballistic Cannon Battle Cannon Launcher Tiamat Missile Launcher Special Weapon Improved Remote Datajack Impact Weapon Powered Hammer Slashing Weapon Power Sword Piercing Weapon Heavy Pick Special Melee Weapon Improved Datajack Build | -11 -10 -10 -9 -9 -6 -6 -6 -6 -6 -6 -6 -5 -5 -5 -5 -5 -5 -4 -4 -4 -4 -4 -4 -4 -3 -3 -3 -3 -2 -2 -1 -1 ------- Run | Yrd Mat Sub Rec Scr Fac Was Fac Ext Cet Arc Hub Fac Was Fac Upp Upp Zhi Pro Fac Was Fac Upp Upp War Pro Res Qua Sec Res DSF Acc Com Slots Evolved 18 | . . . . . 8 . . . . . . 2 . . . . . . 2 . . . . . . 2 . . 2 . 2 . Power 1 | . . . . . 1 . . . . . . . . . . . . . . . . . . . . . . . . . . . Propulsion 5 | . . . . . 3 . . . . . . . . . . . . . 1 . . . . . . 1 . . . . . . Utility 12 | . . . . . 4 . . . . . . 2 . . . . . . 1 . . . . . . 1 . . 2 . 2 . Weapon . | . . . . . . . . . . . . . . . . . . . . . . . . . . . . . . . . . Parts Attached 224 | 7 . 10 2 4 38 . 2 9 11 5 2 2 4 9 3 . 5 7 8 4 24 2 1 17 2 4 4 7 1 25 1 4 Power 26 | 1 . . . . 3 . . 1 2 . . . . . . . . 4 1 2 2 1 1 3 1 . 1 1 1 1 . . Engine 2 | 1 . . . . 1 . . . . . . . . . . . . . . . . . . . . . . . . . . . Core 11 | . . . . . 2 . . 1 . . . . . . . . . 4 . 1 1 . . . . . . 1 . 1 . . Reactor 13 | . . . . . . . . . 2 . . . . . . . . . 1 1 1 1 1 3 1 . 1 . 1 . . . Propulsion 48 | 2 . 1 . 1 14 . 2 2 4 1 . . 2 2 . . 1 1 3 . 2 . . 8 . 1 . 1 . . . . Treads 4 | 2 . . . 1 1 . . . . . . . . . . . . . . . . . . . . . . . . . . . Leg . | . . . . . . . . . . . . . . . . . . . . . . . . . . . . . . . . . Wheel 2 | . . 1 . . 1 . . . . . . . . . . . . . . . . . . . . . . . . . . . Hover 30 | . . . . . 4 . . . 4 1 . . 2 2 . . 1 1 3 . 2 . . 8 . 1 . 1 . . . . Flight 12 | . . . . . 8 . 2 2 . . . . . . . . . . . . . . . . . . . . . . . . Utility 104 | 1 . 4 2 1 15 . . 3 3 3 1 2 1 4 2 . 4 1 3 2 14 . . 5 . 3 1 2 . 22 1 4 Device 49 | . . 2 . 1 5 . . 1 2 2 . . 1 1 2 . 3 . 1 2 4 . . 3 . 3 1 . . 14 . 1 Storage 10 | 1 . . 2 . 2 . . . . . . . . 1 . . . . . . 1 . . . . . . 1 . 2 . . Processor 13 | . . . . . 5 . . . . . . . . . . . . . . . 2 . . 1 . . . . . 3 . 2 Hackware 20 | . . . . . 2 . . . . 1 1 1 . 2 . . . . 1 . 7 . . 1 . . . . . 2 1 1 Protection 10 | . . 2 . . 1 . . 2 1 . . 1 . . . . 1 1 1 . . . . . . . . . . . . . Artifact 2 | . . . . . . . . . . . . . . . . . . . . . . . . . . . . 1 . 1 . . Weapon 46 | 3 . 5 . 2 6 . . 3 2 1 1 . 1 3 1 . . 1 1 . 6 1 . 1 1 . 2 3 . 2 . . Energy Gun 5 | 1 . . . 1 . . . . . . . . . . . . . 1 . . . . . . . . . 1 . 1 . . Energy Cannon 7 | . . 2 . . . . . . . . . . . 1 1 . . . 1 . . . . . . . 1 1 . . . . Ballistic Gun 4 | 2 . 1 . . . . . . 1 . . . . . . . . . . . . . . . . . . . . . . . Ballistic Cannon 7 | . . 1 . . 2 . . 1 1 . . . . . . . . . . . 2 . . . . . . . . . . . Launcher 9 | . . 1 . . 1 . . . . . . . 1 1 . . . . . . 3 . . . . . . 1 . 1 . . Special Weapon 4 | . . . . . 1 . . . . . 1 . . 1 . . . . . . 1 . . . . . . . . . . . Impact Weapon 2 | . . . . 1 . . . . . . . . . . . . . . . . . . . . 1 . . . . . . . Slashing Weapon 3 | . . . . . . . . 2 . . . . . . . . . . . . . 1 . . . . . . . . . . Piercing Weapon 3 | . . . . . 1 . . . . . . . . . . . . . . . . . . 1 . . 1 . . . . . Special Melee Weapon 2 | . . . . . 1 . . . . 1 . . . . . . . . . . . . . . . . . . . . . . Unidentified Prototypes 27 | . . . . . 3 . . . 4 . . . . 1 . 1 3 . . 1 2 . . 8 . 1 1 1 . 1 . . Corrupted Parts 3 | . . . . . . . . . 1 . . . . 2 . . . . . . . . . . . . . . . . . . System Corruption 9 | . . . . . . . . . 6 . . . . 3 . . . . . . . . . . . . . . . . . . Parts Lost 45 | . . . . . 4 . . 3 4 . 1 . . 1 . . . 5 3 . . 2 1 1 . 1 7 7 . . . 5 Power 11 | . . . . . 2 . . . . . . . . . . . . 2 1 . . 1 . 1 . . 1 3 . . . . Propulsion 8 | . . . . . 2 . . 1 2 . . . . . . . . . 1 . . . . . . . 1 1 . . . . Utility 14 | . . . . . . . . . 1 . . . . 1 . . . 1 1 . . . . . . 1 2 2 . . . 5 Weapon 12 | . . . . . . . . 2 1 . 1 . . . . . . 2 . . . 1 1 . . . 3 1 . . . . Highest Loss Streak 4 | . . . . . 2 . . 1 4 . 1 . . 1 . . . 2 2 . . 1 1 1 . 1 3 4 . . . 3 To Critical Strikes . | . . . . . . . . . . . . . . . . . . . . . . . . . . . . . . . . . Average Backups 13 | 3 6 5 16 18 11 10 10 9 9 8 9 8 9 14 16 17 16 16 16 18 18 18 19 17 18 17 16 12 6 12 6 5 Power . | . 1 . . . . 1 1 1 1 1 1 1 1 1 1 1 1 . . . . . 1 1 1 1 1 1 . 1 . . Propulsion 2 | 1 2 1 2 3 . 1 1 1 1 1 1 1 1 2 3 3 2 2 3 1 2 5 5 5 6 5 4 1 . . . . Utility 6 | . 2 . 7 9 6 6 5 5 6 6 7 6 7 9 8 9 9 10 10 12 11 7 8 7 6 5 4 3 1 4 2 . Weapon 3 | . 1 2 6 4 1 . . . . . . . . 1 3 3 3 . . 2 3 5 4 3 4 4 4 2 2 3 1 2 Tool/Special . | . . . . . . . . . . . . . . . . . . . . . . . . . . . . . . . . . Unused Backups 45 | . . 4 3 4 6 . 2 . . 1 . 1 1 . . . 1 . 1 2 4 1 2 2 . . . 2 . 4 4 . Power 6 | . . 1 . . . . . . . . . 1 . . . . . . . . 1 1 . . . . . 1 . 1 . . Propulsion 5 | . . 2 . 1 . . 1 . . . . . . . . . . . 1 . . . . . . . . . . . . . Utility 25 | . . 1 1 2 4 . 1 . . 1 . . 1 . . . . . . . 2 . 2 2 . . . 1 . 3 4 . Weapon 9 | . . . 2 1 2 . . . . . . . . . . . 1 . . 2 1 . . . . . . . . . . . Tool/Special . | . . . . . . . . . . . . . . . . . . . . . . . . . . . . . . . . . Average Slot Usage (%) 86 | . 85 85 100 89 79 93 93 91 91 92 91 90 93 88 85 88 87 78 87 83 85 78 80 86 100 95 96 74 42 60 71 68 Engine 5 | . 14 14 14 11 2 . . . . . . . . . . . . . . . . . . 1 . . . . . . . . Core 1 | . . . . . 1 6 6 6 2 . . . . . . . . 2 9 4 1 5 2 . . . . 1 . 8 7 6 Reactor 3 | . . . . . . . . . 8 13 13 11 11 11 11 11 11 3 . 5 8 4 7 7 10 9 9 4 6 . . . Treads 11 | . 28 27 28 27 7 . . . . . . . . . . . . . . . . . . . . . . . . . . . Hover 9 | . . . . . 4 . . . 14 26 25 23 22 20 17 17 17 17 19 14 18 15 15 19 31 33 33 23 . . . . Flight 2 | . . . . . 16 33 33 32 13 . . . . . . . . . . . . . . . . . . . . . . . Device 10 | . . . 14 11 10 13 13 8 6 9 5 5 5 9 10 11 11 10 15 19 17 14 15 14 15 14 18 14 9 16 22 20 Storage 6 | . 14 1 14 13 5 6 6 6 6 6 6 5 5 5 5 5 5 5 5 5 5 5 5 5 5 4 4 6 9 9 7 7 Processor 5 | . . . . . 7 13 13 13 13 13 13 11 11 11 11 11 11 11 10 10 7 10 10 10 10 9 9 6 . 7 7 9 Hackware 5 | . . . . . 4 6 6 6 6 6 12 11 17 17 11 11 11 10 9 5 10 10 10 10 10 9 6 . . 2 6 7 Protection 4 | . . 12 . . . . . 3 5 2 . 7 5 . 5 5 4 6 5 6 5 5 5 5 4 4 6 4 . . . . Energy Cannon 5 | . . 11 6 10 . . . . . . . . . . . . . 4 5 5 3 2 . . . . . . . 1 5 6 Ballistic Gun 1 | . 14 3 7 . . . . . . . . . . . . . . . . . . . . . . . . . . . . . Ballistic Cannon 5 | . . 12 14 8 2 . . . . . . . . . . . . . . . . . . 2 . 4 2 . . . . . Slashing Weapon 1 | . . . . . . . . 4 5 6 6 5 5 5 5 5 5 . . . . . 5 . . . . . . . . . Peak Build Rating 262 | 6 6 13 15 17 64 64 68 70 90 95 96 104 111 119 118 120 121 118 126 131 132 128 124 144 142 151 148 211 205 237 243 262 Average Rating 71 | 5 6 10 14 15 43 64 66 64 79 89 91 99 105 110 114 118 118 106 117 126 122 120 120 129 136 138 140 160 201 217 236 240 On Entrance 103 | . 6 6 13 15 17 64 64 67 63 89 95 92 104 110 116 118 118 118 100 121 125 120 124 119 137 132 141 142 185 205 237 236 Avg Prop Armor Cover (%) 7 | . . 12 . . 9 . 1 . 2 . . . . . . . . . 3 . . . . . . 2 . . . . . . Naked Turns 69 | . . . . 69 . . . . . . . . . . . . . . . . . . . . . . . . . . . . Heaviest Build 102 | 12 12 32 56 56 59 25 25 32 44 42 44 53 71 79 79 84 80 95 91 97 102 90 89 92 91 96 98 92 79 85 77 70 Greatest Support 102 | 40 40 40 40 46 89 38 39 39 71 73 57 57 59 81 81 81 81 81 94 94 98 94 94 95 91 92 102 101 60 60 60 60 Greatest Overweight (x) 5 | . . 1 1 1 5 . . . 1 . . . 1 1 . 1 1 1 1 1 1 1 . 1 . 1 1 1 1 1 1 1 Average Overweight (x) . | . . . . . . . . . . . . . . . . . . . . . . . . . . . . . . . . . Largest Inventory Capacity 20 | 8 8 8 20 20 20 10 10 10 10 10 10 10 10 20 20 20 20 20 20 20 20 20 20 20 20 20 20 20 20 20 20 10 Average Capacity 15 | 7 8 5 19 19 12 10 10 10 10 10 10 10 10 18 20 20 20 20 20 20 20 20 20 20 20 20 20 19 20 20 10 10 Most Carried 20 | 6 6 8 20 20 20 10 10 10 10 10 10 10 10 20 20 20 20 20 20 20 20 20 20 20 20 20 20 20 12 20 20 10 Average Carried 14 | 3 6 5 18 19 11 9 9 9 9 9 10 9 9 16 19 20 19 19 19 19 19 19 19 19 20 19 19 16 11 17 10 9 Final Capacity 20 | 8 8 8 20 20 10 10 10 10 10 10 10 10 10 20 20 20 20 20 20 20 20 20 20 20 20 20 20 20 20 20 10 10 Final Carried 20 | 6 6 8 20 20 10 10 10 10 10 10 10 10 10 19 20 20 20 20 19 20 20 20 20 20 20 20 19 12 12 20 10 5 Class Distribution -------------------- 44% | Mutant 25% | Scavenger-Mutant 7% | Hacker-Mutant 4% | Scavenger-Scout 4% | Scout 4% | Alien-Sigix Dominant Class ---------------- Mutant | -10/Materials Mutant | -10/Subcaves Mutant | -9/Recycling Mutant | -9/Scraptown Scout | -6/Factory Scout | -6/Waste Scout | -6/Factory Commander-Sprinter | -6/Extension Scavenger-Mutant | -6/Cetus Scavenger-Mutant | -6/Archives Scavenger-Scout | -6/Hub_04(d) Scavenger-Scout | -5/Factory Scavenger-Scout | -5/Waste Scavenger-Scout | -5/Factory Scavenger-Mutant | -5/Upper Caves Scavenger-Mutant | -5/Upper Caves Scavenger-Mutant | -5/Zhirov Scavenger-Mutant | -4/Proximity Caves Scavenger-Mutant | -4/Factory Infiltrator-Mutant | -4/Waste Scavenger-Mutant | -4/Factory Scavenger-Mutant | -4/Upper Caves Hacker-Mutant | -4/Upper Caves Hacker-Mutant | -4/Warlord Scavenger-Mutant | -3/Proximity Caves Scavenger-Mutant | -3/Research Scavenger-Mutant | -3/Quarantine Scavenger-Mutant | -3/Section 7 Alien-Sigix | -2/Research Alien-Sigix | -2/DSF Alien-Sigix | -1/Access Alien-Sigix | -1/Command Resources | -11 -10 -10 -9 -9 -6 -6 -6 -6 -6 -6 -6 -5 -5 -5 -5 -5 -5 -4 -4 -4 -4 -4 -4 -4 -3 -3 -3 -3 -2 -2 -1 -1 ----------- Run | Yrd Mat Sub Rec Scr Fac Was Fac Ext Cet Arc Hub Fac Was Fac Upp Upp Zhi Pro Fac Was Fac Upp Upp War Pro Res Qua Sec Res DSF Acc Com Matter Collected 8126 | 372 . 487 25 80 442 . 35 357 231 118 33 . 151 49 305 . 215 246 . 381 1280 730 76 310 170 428 349 260 . 517 113 366 Remotely 1171 | . . . . . . . . . . . . . . . . . . . . . 545 159 . 220 . 247 . . . . . . Salvage Created 10155 | 266 . 455 44 . 1043 . 35 83 125 297 54 . 134 60 33 . 228 371 . 55 1454 822 329 . 120 287 446 445 . 1004 309 1656 Parts 405 | 28 . 41 4 . 27 . 4 5 3 21 5 . 5 6 2 . 4 22 . 2 63 23 10 . 6 7 15 10 . 42 21 29 Haulers Intercepted 4 | . . . . . 1 . . . . . . . . . . . . . . . 1 . . . . 1 . . . 1 . . Recyclers Shooed 11 | . . . . . 5 . . . . . . . . . . . . . . . 5 . . . . . . 1 . . . . Parts Field Recycled . | . . . . . . . . . . . . . . . . . . . . . . . . . . . . . . . . . Retrieved Matter . | . . . . . . . . . . . . . . . . . . . . . . . . . . . . . . . . . Parts Self-Destructed 61 | . . 25 . . . . . . . . . . . . . . 3 17 . . . 8 . . 8 . . . . . . . Prevented 13 | . . . . . . . . . . . . . . . 3 . . . . . . . 10 . . . . . . . . . Parts Restored . | . . . . . . . . . . . . . . . . . . . . . . . . . . . . . . . . . Kills | -11 -10 -10 -9 -9 -6 -6 -6 -6 -6 -6 -6 -5 -5 -5 -5 -5 -5 -4 -4 -4 -4 -4 -4 -4 -3 -3 -3 -3 -2 -2 -1 -1 ------- Run | Yrd Mat Sub Rec Scr Fac Was Fac Ext Cet Arc Hub Fac Was Fac Upp Upp Zhi Pro Fac Was Fac Upp Upp War Pro Res Qua Sec Res DSF Acc Com Combat Hostiles Destroyed 130 | . . 17 1 . 8 . . 1 2 . . . . 1 . . . 12 . . 24 15 4 . 3 6 6 2 . 11 6 11 Melee 6 | . . . . . 2 . . 1 . . . . . . . . . 1 . . . 1 . . . . 1 . . . . . Guns 5 | . . 2 . . . . . . 1 . . . . . . . . . . . . . . . . . . . . 2 . . Cannons 63 | . . 13 1 . 2 . . . 1 . . . . . . . . 9 . . 2 5 . . 2 1 2 2 . 6 6 11 AOE 46 | . . 2 . . 3 . . . . . . . . 1 . . . 1 . . 20 6 1 . 1 5 3 . . 3 . . Classes Destroyed 26 | 3 . 5 1 . 4 . . . . 1 . . 1 . 1 . . . . . 2 3 . . 1 . 1 2 . 1 . . Worker 15 | 2 . . . . 3 . 2 . . . 1 . . 1 . . . . . . 3 . . . . 1 . 1 . . 1 . Builder 4 | . . . . . 1 . . 1 . . 1 . . . . . . . . . . . . . . . . . . . 1 . Tunneler 10 | 8 . . . . . . . . . . . . . 1 . . . . . . 1 . . . . . . . . . . . Hauler 4 | . . . . . 1 . . . . . . . . . . . . . . . 1 . . . . 1 . . . 1 . . Recycler 14 | 1 . . . . 6 . . . . . . . . . . . . . . . 4 . . . . 1 1 1 . . . . Minesweeper 1 | . . . . . . . . . . . . . . . . . . . . . . 1 . . . . . . . . . . Mechanic 1 | . . . . . . . . . . . . . . . . . . . . . . . . . . . . 1 . . . . Operator 12 | . . . . . . . . . . 9 . . . 1 . . . . . . . . . . . . 1 1 . . . . Drone 2 | . . . . . . . . . . . . . . . . . . . . . . . . . 1 . . . . . 1 . Turret 2 | . . 2 . . . . . . . . . . . . . . . . . . . . . . . . . . . . . . Watcher 7 | . . . . . 1 . . . . . . . . . . . . . . . 1 . . . . . 2 . . . . 3 Swarmer 49 | . . 7 . . 4 . . . . . . . . . . . . 9 . . 12 3 . . . 3 3 . . 4 4 . Saboteur 1 | . . . . . . . . . . . . . . . . . . . . . 1 . . . . . . . . . . . Grunt 28 | . . 2 . . 3 . . . . . . . . 1 . . . 1 . . 4 4 3 . . 2 . 1 . . . 7 Brawler 3 | . . . . . . . . . . . . . . . . . . . . . . 1 1 . . . . . . . . 1 Duelist 2 | . . . . . . . . . . . . . . . . . . . . . . 2 . . . . . . . . . . Sentry 5 | . . . 1 . . . . 1 . . . . . . . . . . . . . 1 . . . . . 1 . . 1 . Specialist 6 | . . . . . . . . . . . . . . . . . . . . . . . . . . . 1 . . 5 . . Hunter 5 | . . . . . . . . . . . . . . . . . . . . . 3 . . . . 1 . . . 1 . . Programmer 11 | . . . . . 1 . . . . . . . . . . . . 2 . . 4 . . . 2 . 2 . . . . . Heavy 1 | . . . . . . . . . . . . . . . . . . . . . . . . . . . . . . 1 . . Cetus Guard 2 | . . . . . . . . . 2 . . . . . . . . . . . . . . . . . . . . . . . Combat Programmer 2 | . . . . . . . . . . . . . . . . . . . . . . . . . . . . . . . . 2 Investigator 1 | . . . . . . . . . . . . . . . . . . . . . . . . . . . . 1 . . . . Artisan 1 | . . 1 . . . . . . . . . . . . . . . . . . . . . . . . . . . . . . Subdweller 8 | . . 8 . . . . . . . . . . . . . . . . . . . . . . . . . . . . . . Decomposer 3 | . . . . . . . . . . . . . . . . . . . . . . 3 . . . . . . . . . . Samaritan 1 | . . . . . . . . . . . . . . . 1 . . . . . . . . . . . . . . . . . Thug 1 | . . . . . . . . . . . . . . . . . . . . . . 1 . . . . . . . . . . Savage 3 | . . . . . . . . . . . . . . . . . . . . . . 3 . . . . . . . . . . Martyr 3 | . . . . . . . . . . . . . 2 . . . . . . 1 . . . . . . . . . . . . Best Kill Streak 11 | 4 . 4 1 . 6 . 2 1 2 5 1 . . 2 . . . 5 . . 6 4 4 . 2 5 3 3 . 6 4 11 Combat Bots Only 8 | . . 4 1 . 4 . . 1 2 . . . . 1 . . . 5 . . 5 4 4 . 2 3 3 2 . 6 4 8 Max Kills in Single Turn 5 | 2 . 2 1 . 3 . 1 1 1 1 1 . 1 1 1 . . 1 . 1 5 1 1 . 2 2 3 1 . 3 4 2 Gunslinging . | . . . . . . . . . . . . . . . . . . . . . . . . . . . . . . . . . Exploded 4 | . . 2 . . 3 . . . . . . . . 1 . . . 1 . . 4 1 1 . 1 2 3 . . 3 . . Melee 1 | . . . . . 1 . . 1 . . . . . . . . . 1 . . . 1 . . . . 1 . . . . . Uniques/NPCs Destroyed 1 | . . . . . . . . . . . . . . . . . . . . . . . . . . . . . . . . 1 MAIN.C Shell (-1/Command) Combat | -11 -10 -10 -9 -9 -6 -6 -6 -6 -6 -6 -6 -5 -5 -5 -5 -5 -5 -4 -4 -4 -4 -4 -4 -4 -3 -3 -3 -3 -2 -2 -1 -1 -------- Run | Yrd Mat Sub Rec Scr Fac Was Fac Ext Cet Arc Hub Fac Was Fac Upp Upp Zhi Pro Fac Was Fac Upp Upp War Pro Res Qua Sec Res DSF Acc Com Hostile Shots Fired 1575 | . . 82 . . 79 . 31 59 27 1 38 1 . 26 2 8 . 124 47 . 105 58 25 . 4 32 155 275 . 106 111 179 Missed 619 | . . 31 . . 37 . 19 30 5 1 19 1 . 10 2 4 . 46 16 . 51 24 12 . 1 11 68 84 . 47 45 55 Hits 956 | . . 51 . . 42 . 12 29 22 . 19 . . 16 . 4 . 78 31 . 54 34 13 . 3 21 87 191 . 59 66 124 Melee 24 | . . . . . . . . . . . . . . . . . . . . . . . . . . . . 24 . . . . Projectile 932 | . . 51 . . 42 . 12 29 22 . 19 . . 16 . 4 . 78 31 . 54 34 13 . 3 21 87 167 . 59 66 124 AOE 15 | . . . . . . . . . . . . . . . . . . . . . 1 . . . . . . 2 . . . 12 Critical Strikes 46 | . . 2 . . 1 . . . . . . . . 1 . . . 4 1 . 3 . 1 . . . 2 13 . . 8 10 Part Disruptions 1 | . . . . . . . . . . . . . . . . . . . . . 1 . . . . . . . . . . . Damage Taken 16908 | . . 760 . . 739 . 101 505 687 . 342 26 . 299 . 84 . 1389 661 . 1120 714 321 79 68 314 2077 2395 . 134 581 3512 Core 3493 | . . 54 . . 166 . 39 164 95 . 68 . . 64 . . . 236 73 . 74 44 . . 40 12 214 663 . 64 172 1251 Absorbed by Shields 2003 | . . . . . . . . 85 . . . . . . . . . 78 . . . . . . 12 140 . 998 . 139 102 449 Redirected to Shielding 141 | . . . . . . . . . . . . . . . . . . 141 . . . . . . . . . . . . . . Ignored by Resistances 6490 | . . . . . . . . . . . . . . . . . . . . . . . . . . . . 2052 . 304 722 3412 Regen/Repaired (Parts) 3370 | . . . . . 19 . . . 30 . 19 70 113 108 67 17 24 386 209 191 574 392 113 227 . 73 416 322 . . . . Core Remaining (%) 65 | 100 . . . 78 . . . . . . 37 . . . . . . 70 . . . . . . 79 . . 28 . 95 . 36 Volleys Fired 494 | 34 . 70 7 . 17 . . 1 10 . . . . 5 2 4 . 31 41 6 90 64 7 1 5 13 13 9 3 13 14 34 Largest 2 | 2 . 2 2 . 2 . . 1 1 . . . . 1 1 1 . 1 1 1 2 1 1 1 2 2 2 1 1 2 2 1 Hottest 200 | 70 . 113 80 . 88 . . . 48 . . . . 43 98 98 . 98 105 105 125 105 46 46 104 104 104 180 100 200 200 180 Shots Fired 610 | 64 . 113 8 . 28 . . 1 10 . . . . 5 2 4 . 32 41 6 96 64 7 1 6 17 25 9 3 18 16 34 Gun 125 | 64 . 30 3 . . . . . 3 . . . . . . . . . . . . . . . . . . 5 3 10 6 1 Cannon 377 | . . 82 5 . 25 . . . 7 . . . . . 2 3 . 28 39 6 68 20 . . 5 10 24 3 . 7 10 33 Launcher 76 | . . 1 . . 3 . . . . . . . . 5 . 1 . 4 . . 26 17 7 1 1 7 1 1 . 1 . . Special 32 | . . . . . . . . 1 . . . . . . . . . . 2 . 2 27 . . . . . . . . . . Kinetic 198 | 34 . 74 4 . 25 . . . 10 . . . . . . . . . . . 12 . . . 5 10 24 . . . . . Thermal 256 | 30 . 39 4 . . . . . . . . . . . 2 3 . 28 39 6 58 47 . . . . . . . . . . Explosive 48 | . . . . . 3 . . . . . . . . 5 . 1 . 4 . . 11 12 . 1 1 7 1 1 . 1 . . Electromagnetic 27 | . . . . . . . . . . . . . . . . . . . . . 15 5 7 . . . . . . . . . Slashing 78 | . . . . . . . . . . . . . . . . . . . . . . . . . . . . 8 3 17 16 34 Robot Hit Streak 21 | 5 . 12 8 . 12 . . 1 4 . . . . . . . . 5 6 7 12 11 . . 2 5 4 9 . 21 3 19 Robot Miss Streak 6 | 3 . 4 . . 2 . . . 3 . . . . 1 . . . 3 . 1 1 3 . . . 2 2 1 . 3 6 4 Penetration Max 1 | . . . . . . . . . . . . . . . . . . . . . 1 . . . 1 1 . 1 . 1 1 1 Secondary Targets . | . . . . . . . . . . . . . . . . . . . . . . . . . . . . . . . . . Shots Hit Robots 420 | 19 . 65 2 . 49 . 2 29 12 16 6 . 5 2 1 . 8 23 2 4 37 52 . . 1 9 19 7 . 13 6 31 Core Hits 371 | 11 . 29 3 . 18 . 1 3 5 6 3 . 2 7 . 2 1 17 . 1 62 44 3 . 2 23 11 14 . 20 12 71 Critical Kills 10 | . . . . . 1 . . . 2 . . . . . . . . 1 . 1 1 . . . 2 . 2 . . . . . Critical Parts Destroyed 17 | . . . . . 3 . . . 1 . . . . . . . . . . . 5 . . . . 2 5 1 . . . . Critical Strikes 39 | . . 3 . . 4 . 1 . 3 . . . . . . . . 2 . 1 6 . . . 2 3 7 2 . 1 . 4 Meltdown 2 | . . . . . . . . . . . . . . . . . . 1 . 1 . . . . . . . . . . . . Destroy 19 | . . . . . . . . . 3 . . . . . . . . . . . 6 . . . 2 3 5 . . . . . Blast 3 | . . 3 . . . . . . . . . . . . . . . . . . . . . . . . . . . . . . Smash 7 | . . . . . 4 . . . . . . . . . . . . . . . . . . . . . 2 1 . . . . Sever 7 | . . . . . . . . . . . . . . . . . . 1 . . . . . . . . . 1 . 1 . 4 Impale 1 | . . . . . . . 1 . . . . . . . . . . . . . . . . . . . . . . . . . Melee Attacks 276 | . . . . . 69 . 11 39 7 17 12 1 5 8 3 4 9 7 . . . 5 2 5 3 4 48 17 . . . . Impact 123 | . . . . . 60 . . . . . . . . . . . . . . . . . . . 2 4 40 17 . . . . Slashing 97 | . . . . . . . . 18 6 17 12 1 5 8 3 4 9 7 . . . 5 2 . . . . . . . . . Piercing 26 | . . . . . 8 . 11 7 . . . . . . . . . . . . . . . . . . . . . . . . Entropic 14 | . . . . . . . . . . . . . . . . . . . . . . . . 5 1 . 8 . . . . . Sneak Attacks 53 | . . . . . 7 . 2 16 . 11 4 . 5 2 1 . . . . . . . . . . 1 1 3 . . . . Combat Hostiles 1 | . . . . . . . . 1 . . . . . . . . . . . . . . . . . . . . . . . . Follow-up Attacks . | . . . . . . . . . . . . . . . . . . . . . . . . . . . . . . . . . Damage Inflicted 36227 | 256 . 1464 99 . 2600 . 160 578 405 1365 412 . 409 516 69 187 645 1095 . 142 5253 3043 443 . 141 2057 998 2024 . 2133 1137 8596 Guns 1229 | 256 . 333 18 . . . . . 86 . . . . . . . . . . . . . . . . . . . . 475 . 61 Cannons 16779 | . . 1034 27 . 543 . . . 95 . . . . . . . . 552 . 142 911 517 . . 46 164 255 1670 . 1405 883 8535 Explosions 10771 | . . 97 . . 373 . . . . . . . . 347 . 187 . 380 . . 4328 1855 443 . 95 1803 352 4 . 253 254 . Melee 6994 | . . . . . 1684 . 160 578 224 1365 412 . 409 169 69 . 645 163 . . . 315 . . . 90 391 320 . . . . Ramming 84 | . . . 54 . . . . . . . . . . . . . . . . . . . . . . . . 30 . . . . Kinetic 2424 | 106 . 818 45 . 543 . . . 181 . . . . . . . . . . . 266 . . . 46 164 255 . . . . . Thermal 3609 | 150 . 646 . . . . . . . . . . . . . . . 552 . 142 1171 873 . . . . . . . . 75 . Explosive 7831 | . . . . . 373 . . . . . . . . 347 . 187 . 380 . . 2480 1557 . . 95 1803 352 4 . 253 . . Electromagnetic 2256 | . . . . . . . . . . . . . . . . . . . . . 1336 298 443 . . . . . . . 179 . Impact 2357 | . . . . . 1684 . . . . . . . . . . . . . . . . . . . . 90 263 320 . . . . Slashing 17303 | . . . . . . . . 503 224 1365 412 . 409 169 69 . 645 163 . . . 315 . . . . . 1670 . 1880 883 8596 Piercing 235 | . . . . . . . 160 75 . . . . . . . . . . . . . . . . . . . . . . . . Entropic 128 | . . . . . . . . . . . . . . . . . . . . . . . . . . . 128 . . . . . Highest Corruption 16 | . . . . . . 10 10 10 16 16 2 . . 3 3 . . 10 1 1 5 5 5 5 1 . 2 7 . . . . Average Corruption 5 | . . . . . . 10 10 10 14 8 2 . . 2 2 . . 9 1 1 2 5 5 5 1 . 1 4 . . . . Corruption Purged 17 | . . . . . . . . . . 14 . . . . 3 . . . . . . . . . . . . . . . . . Corruption Blocked . | . . . . . . . . . . . . . . . . . . . . . . . . . . . . . . . . . Effects 208 | . . . . . . 1 14 33 19 10 8 . . 8 6 . . 27 2 4 29 22 10 . 1 . 3 11 . . . . Message Errors 49 | . . . . . . . 3 5 4 2 2 . . 3 2 . . 7 . 2 5 5 4 . . . 1 4 . . . . Matter Fused 44 | . . . . . . . 2 4 3 5 1 . . 1 1 . . 8 . . 9 5 2 . . . . 3 . . . . Heat Flow Errors 31 | . . . . . . . 3 5 5 . 2 . . 2 . . . 4 . 1 7 1 . . . . . 1 . . . . Energy Discharges 30 | . . . . . . . 2 5 2 . 1 . . . 2 . . 4 1 . 1 7 2 . 1 . 2 . . . . . Parts Rejected 10 | . . . . . . . 1 1 2 . . . . 1 . . . . 1 . 1 . 1 . . . . 2 . . . . Parts Fused 2 | . . . . . . 1 . 1 . . . . . . . . . . . . . . . . . . . . . . . . Data Loss (minor) 18 | . . . . . . . 1 3 1 2 1 . . 1 . . . 3 . . 3 2 . . . . . 1 . . . . Data Loss (major) 9 | . . . . . . . . 4 1 . . . . . . . . . . 1 1 1 1 . . . . . . . . . Misfires 1 | . . . . . . . . . . . . . . . . . . 1 . . . . . . . . . . . . . . Alerts 8 | . . . . . . . . 1 1 1 1 . . . 1 . . . . . 2 1 . . . . . . . . . . Misdirections 6 | . . . . . . . 2 4 . . . . . . . . . . . . . . . . . . . . . . . . Overload Shots . | . . . . . . . . . . . . . . . . . . . . . . . . . . . . . . . . . Overflow Damage 2681 | . . 29 . . 377 . 76 . . 454 102 . 55 36 57 . 169 42 . . 276 134 20 19 34 202 169 240 . 6 58 126 Projectiles 317 | . . 29 . . . . . . . . . . . . . . . 21 . . 51 61 . . . . . . . 6 23 126 Explosions 603 | . . . . . . . . . . . . . . 36 . . . 21 . . 225 31 20 19 34 182 . . . . 35 . Melee 1761 | . . . . . 377 . 76 . . 454 102 . 55 . 57 . 169 . . . . 42 . . . 20 169 240 . . . . Knockbacks 30 | . . 6 . . 6 . . . 1 . . . . . . . . . . . 4 . . . . 4 7 2 . . . . Impact 10 | . . . . . 5 . . . . . . . . . . . . . . . . . . . . 1 2 2 . . . . Kinetic 19 | . . 6 . . 1 . . . 1 . . . . . . . . . . . 3 . . . . 3 5 . . . . . Secondary 1 | . . . . . . . . . . . . . . . . . . . . . 1 . . . . . . . . . . . Self-Inflicted Damage 171 | . . . . . . . . . . . . . . . . . . . . . 35 29 7 79 . . . . . . 21 . Shots 6 | . . . . . . . . . . . . . . . . . . . . . 1 2 1 1 . . . . . . 1 . Rammed 10 | . . . 10 . . . . . . . . . . . . . . . . . . . . . . . . . . . . . Targets Rammed 11 | . . . 10 . . . . . . . . . . . . . . . . . . . . . . . . 1 . . . . Kicked 1 | . . . . . . . . . . . . . . . . . . . . . . . . . . . . 1 . . . . Crushed . | . . . . . . . . . . . . . . . . . . . . . . . . . . . . . . . . . Highest Temperature 481 | 153 . 8 80 . 10 . 341 290 254 . 235 47 . 249 144 84 . 404 317 346 481 237 86 6 97 266 204 95 1 . 7 307 Average Temperature 83 | 54 . 3 26 . 4 . 107 54 98 . 73 17 . 67 50 24 . 88 118 55 109 49 53 4 51 151 54 42 1 . 7 79 Received Heat Transfer 2751 | . . 174 . . 237 . 18 90 126 . 108 . . 108 . 27 . 99 87 . 170 81 48 . 18 9 204 265 . . 258 624 Effects 16 | . . . . . . . . 2 . . . . . . . . . 2 1 1 8 2 . . . . . . . . . . Shutdowns 2 | . . . . . . . . . . . . . . . . . . 1 . . 1 . . . . . . . . . . . Energy Bleed 6 | . . . . . . . . 2 . . . . . . . . . 1 . . 3 . . . . . . . . . . . Interference 5 | . . . . . . . . . . . . . . . . . . . . . 3 2 . . . . . . . . . . Matter Decay 1 | . . . . . . . . . . . . . . . . . . . . 1 . . . . . . . . . . . . Short Circuit 1 | . . . . . . . . . . . . . . . . . . . 1 . . . . . . . . . . . . . Damage (minor) 1 | . . . . . . . . . . . . . . . . . . . . . 1 . . . . . . . . . . . Siege Activations . | . . . . . . . . . . . . . . . . . . . . . . . . . . . . . . . . . Martial Activations . | . . . . . . . . . . . . . . . . . . . . . . . . . . . . . . . . . Shielding Activations . | . . . . . . . . . . . . . . . . . . . . . . . . . . . . . . . . . Robots Disrupted 1 | . . . . . . . . . . . . . . . . . . . . . . . . . . . . . . . 1 . Combat Hostiles 1 | . . . . . . . . . . . . . . . . . . . . . . . . . . . . . . . 1 . Robots Corrupted 20 | . . . . . 7 . . . . . . . . . . . . . . . 2 2 3 . . 1 2 3 . . . . Combat Hostiles 8 | . . . . . 1 . . . . . . . . . . . . . . . 2 2 3 . . . . . . . . . Parts Fried 36 | . . . . . 14 . . . . . . . . . . . . . . . 8 . 3 . . 2 4 5 . . . . Impact Corruptions 28 | . . . . . 14 . . . . . . . . . . . . . . . . . . . . 1 4 9 . . . . Robots Melted 3 | . . . . . . . . . . . . . . . . . . 1 . 1 . 1 . . . . . . . . . . Combat Hostiles 1 | . . . . . . . . . . . . . . . . . . 1 . . . . . . . . . . . . . . Parts Melted 7 | . . 2 . . . . . . . . . . . . . . . 2 . . . 3 . . . . . . . . . . Heat Transferred 4863 | 444 . 999 . . . . . . . . . . . . . . . 800 . 148 1053 1369 . . . . . . . . 50 . Parts Sabotaged . | . . . . . . . . . . . . . . . . . . . . . . . . . . . . . . . . . Parts Stolen . | . . . . . . . . . . . . . . . . . . . . . . . . . . . . . . . . . Parts Stripped . | . . . . . . . . . . . . . . . . . . . . . . . . . . . . . . . . . Power Chain Reactions . | . . . . . . . . . . . . . . . . . . . . . . . . . . . . . . . . . Alert | -11 -10 -10 -9 -9 -6 -6 -6 -6 -6 -6 -6 -5 -5 -5 -5 -5 -5 -4 -4 -4 -4 -4 -4 -4 -3 -3 -3 -3 -2 -2 -1 -1 ------- Run | Yrd Mat Sub Rec Scr Fac Was Fac Ext Cet Arc Hub Fac Was Fac Upp Upp Zhi Pro Fac Was Fac Upp Upp War Pro Res Qua Sec Res DSF Acc Com Maximum Alert Level 5 | . . . . . . . . 2 1 . 2 . . . . . . . . . 4 . . . . 1 1 5 4 4 5 5 Low Security (%) 69 | 100 100 . 100 . 100 100 100 86 82 100 33 100 100 100 . . . . 100 100 14 . . . . 46 39 41 . . . . Level 1 8 | . . . . . . . . 7 17 . 66 . . . . . . . . . 2 . . . . 53 60 29 . . . . Level 2 6 | . . . . . . . . 6 . . . . . . . . . . . . 38 . . . . . . . . . . . Level 3 7 | . . . . . . . . . . . . . . . . . . . . . 40 . . . . . . . 81 39 7 . Level 4 4 | . . . . . . . . . . . . . . . . . . . . . 4 . . . . . . . 18 60 . 73 Level 5 . | . . . . . . . . . . . . . . . . . . . . . . . . . . . . . . . . 26 High Security . | . . . . . . . . . . . . . . . . . . . . . . . . . . . . . . . . . Max Security 3 | . . . . . . . . . . . . . . . . . . . . . . . . . . . . 29 . . 92 . Sterilizations 1 | . . . . . . . . . . . . . . . . . . . . . . . . . . . . . . 1 . . Peak Influence 1914 | 15 . . 48 . 198 63 129 448 240 178 407 198 101 120 . . . . 150 28 1206 . . . . 377 382 1903 1106 1275 1914 1637 Initial 1224 | . . . 48 . . 63 44 61 240 . 23 198 45 35 . . . . 123 5 . . . . . . 111 195 1100 804 764 1224 Average 288 | 1 . . 3 . 71 63 33 112 101 119 209 165 60 11 . . . . 82 1 654 . . . . 209 233 630 1084 1133 1605 1507 Influence Increases 11216 | 55 . 345 96 . 642 . 250 957 108 294 604 2 156 464 . 30 15 405 174 64 2217 225 120 224 131 469 759 722 23 511 574 580 Destroy 0b10 Robot/C 3760 | . . 220 20 . 160 . . 460 80 80 180 . . 160 . . . 240 . . 760 220 80 60 60 220 120 60 . 240 120 220 Destroy 0b10 Robot/NC 435 | 55 . . . . 60 . 10 35 5 45 20 . . 15 . . 15 . . . 65 5 . 5 10 15 20 20 . 10 10 15 Destroy Leader 518 | . . 20 . . 34 . . 46 . . 50 . . 50 . . . 30 . . 126 . 10 . 20 42 24 . . 30 10 26 Allied During Kill 922 | . . . . . . . . 210 17 123 122 . . 29 . . . . . . 306 . . 9 11 38 . . . 36 14 7 Successful Hack 388 | . . . 12 . 30 . 22 44 2 . 6 . . 48 . . . . 69 . 67 . . . . 3 49 28 5 . . 3 Select Force Hacks 110 | . . . 60 . . . . . . . 50 . . . . . . . . . . . . . . . . . . . . . Disable Machine 810 | . . . . . 30 . . 15 . 45 45 . . 60 . . . . . . 270 . . . . 15 120 105 . 15 45 45 Anti-Garrison Action 150 | . . . . . . . . . . . . . . . . . . . . . . . . . . . . . . . 150 . Destroy Structure 1638 | . . . 4 . 58 . 8 27 4 1 11 2 156 42 . . . . 60 64 398 . . . . 106 66 34 18 165 180 234 Partial Spotted 375 | . . . . . 15 . 45 75 . . . . . . . . . . 30 . 30 . . . . . 120 30 . . 15 15 Lose Combat Pursuer 2010 | . . 105 . . 255 . 165 45 . . 120 . . 60 . 30 . 135 15 . 195 . 30 150 30 30 240 345 . 15 30 15 Miscellaneous 100 | . . . . . . . . . . . . . . . . . . . . . . . . . . . . 100 . . . . Influence Decreases 12044 | 55 . 245 196 . 461 118 187 653 538 226 265 279 235 411 104 . 45 208 354 81 1011 877 306 520 203 270 610 523 883 309 781 1090 Entered New Map 4492 | . . . 52 . . 118 19 65 190 . 45 209 85 16 40 . 30 . 74 12 . 447 106 368 72 . 88 153 833 269 511 690 Time Decay 5084 | 55 . 245 144 . 420 . 168 398 188 190 150 70 150 172 64 . 15 158 250 31 571 410 190 132 131 80 322 150 50 . 10 170 Lost Part 431 | . . . . . 31 . . 30 40 . 10 . . 10 . . . 50 30 . . 20 10 . . 10 70 70 . . . 50 Lost Ally 1262 | . . . . . 10 . . 160 120 36 60 . . 158 . . . . . 38 140 . . 20 . 30 10 . . 40 260 180 Purge Threat 775 | . . . . . . . . . . . . . . 55 . . . . . . 300 . . . . 150 120 150 . . . . Squads Dispatched 111 | . . . . . 13 . 5 2 . . 6 3 . 7 . . . . 8 . 19 . . . . 2 2 16 . 2 24 2 Investigation 38 | . . . . . 8 . 4 2 . . 3 2 . 5 . . . . 7 . 5 . . . . . 1 1 . . . . Extermination 15 | . . . . . 3 . 1 . . . 1 . . 2 . . . . 1 . 4 . . . . . 1 1 . . . 1 Reinforcement 16 | . . . . . 1 . . . . . 2 1 . . . . . . . . 5 . . . . 2 . 1 . 2 1 1 Assault 39 | . . . . . . . . . . . . . . . . . . . . . 4 . . . . . . 12 . . 23 . Garrison 2 | . . . . . 1 . . . . . . . . . . . . . . . 1 . . . . . . . . . . . Intercept 1 | . . . . . . . . . . . . . . . . . . . . . . . . . . . . 1 . . . . Searches Triggered . | . . . . . . . . . . . . . . . . . . . . . . . . . . . . . . . . . Construction Impeded 2 | . . . . . . . . . . . 1 . . . . . . . . . . . . . . . . . . . 1 . Haulers Reinforced 3 | . . . . . . . . . . . . . . . . . . . . . 2 . . . . 1 . . . . . . Active Scanning Responses . | . . . . . . . . . . . . . . . . . . . . . . . . . . . . . . . . . Cargo Convoy Interrupts . | . . . . . . . . . . . . . . . . . . . . . . . . . . . . . . . . . Stealth | -11 -10 -10 -9 -9 -6 -6 -6 -6 -6 -6 -6 -5 -5 -5 -5 -5 -5 -4 -4 -4 -4 -4 -4 -4 -3 -3 -3 -3 -2 -2 -1 -1 --------- Run | Yrd Mat Sub Rec Scr Fac Was Fac Ext Cet Arc Hub Fac Was Fac Upp Upp Zhi Pro Fac Was Fac Upp Upp War Pro Res Qua Sec Res DSF Acc Com Distress Signals 27 | . . . . . 4 . 1 3 1 . 4 . . 2 . . . . 1 . 2 1 . 3 . 2 . 3 . . . . Communications Jammed 73 | . . . . . . . . . . . . . . . . . . . 10 . 61 . . . 1 1 . . . . . . Distress Signals 72 | . . . . . . . . . . . . . . . . . . . 10 . 61 . . . . 1 . . . . . . Times Spotted 528 | . . 23 1 . 32 4 20 28 4 10 24 3 4 14 1 7 . 28 23 5 62 16 5 13 5 18 34 73 . 10 26 35 Peak Tracking Total 42 | . . 3 . . 8 4 8 6 4 2 10 3 2 4 1 5 . 5 12 4 5 7 4 12 2 6 9 42 . 4 10 22 Tactical Retreats 74 | . . 5 . . 10 . 4 3 . . 4 . . 2 1 1 . 6 4 . 7 2 2 2 1 1 8 7 . 1 2 1 ECM-based Alert Blocks 11 | . . . . . . . . . . . . . . . 1 . . 6 4 . . . . . . . . . . . . . Traps | -11 -10 -10 -9 -9 -6 -6 -6 -6 -6 -6 -6 -5 -5 -5 -5 -5 -5 -4 -4 -4 -4 -4 -4 -4 -3 -3 -3 -3 -2 -2 -1 -1 ------- Run | Yrd Mat Sub Rec Scr Fac Was Fac Ext Cet Arc Hub Fac Was Fac Upp Upp Zhi Pro Fac Was Fac Upp Upp War Pro Res Qua Sec Res DSF Acc Com Traps Triggered 27 | . . 1 . . 1 . . 5 . . 1 2 . 2 . . . . 2 . 3 . . . . . 3 . . 3 2 2 Indirectly 1 | . . . . . . . . . . . . . . . . . . . . . 1 . . . . . . . . . . . Trap Hack Attempts . | . . . . . . . . . . . . . . . . . . . . . . . . . . . . . . . . . Triggered . | . . . . . . . . . . . . . . . . . . . . . . . . . . . . . . . . . Disarmed . | . . . . . . . . . . . . . . . . . . . . . . . . . . . . . . . . . Reprogrammed . | . . . . . . . . . . . . . . . . . . . . . . . . . . . . . . . . . Reused . | . . . . . . . . . . . . . . . . . . . . . . . . . . . . . . . . . Traps Extracted . | . . . . . . . . . . . . . . . . . . . . . . . . . . . . . . . . . Installed . | . . . . . . . . . . . . . . . . . . . . . . . . . . . . . . . . . Triggered . | . . . . . . . . . . . . . . . . . . . . . . . . . . . . . . . . . Machines | -11 -10 -10 -9 -9 -6 -6 -6 -6 -6 -6 -6 -5 -5 -5 -5 -5 -5 -4 -4 -4 -4 -4 -4 -4 -3 -3 -3 -3 -2 -2 -1 -1 ---------- Run | Yrd Mat Sub Rec Scr Fac Was Fac Ext Cet Arc Hub Fac Was Fac Upp Upp Zhi Pro Fac Was Fac Upp Upp War Pro Res Qua Sec Res DSF Acc Com Machines Disabled 60 | . . 2 . . 2 . . 1 . 3 3 . . 4 . 1 . . . . 18 . . 1 . 1 8 7 . 2 4 3 Max in Single Turn 4 | . . 1 . . 1 . . . . . . . . 1 . 1 . . . . 4 . . 1 . 1 1 2 . 1 1 1 Garrison Access 11 | . . . . . 4 . 1 . . . . . . 1 . . . . 1 . 2 . . . . . 1 . . . 1 . Network Hub 1 | . . . . . . . . . . . 1 . . . . . . . . . . . . . . . . . . . . . Energy Cycler 1 | . . . . . . . . . . . . . . . . . . . . . . . . . . . . . . . 1 . Machines Repaired . | . . . . . . . . . . . . . . . . . . . . . . . . . . . . . . . . . Machines Dismantled . | . . . . . . . . . . . . . . . . . . . . . . . . . . . . . . . . . Machines Sabotaged 1 | . . . . . . . . . . . 1 . . . . . . . . . . . . . . . . . . . . . Overloaded Fab Kills . | . . . . . . . . . . . . . . . . . . . . . . . . . . . . . . . . . Hacking | -11 -10 -10 -9 -9 -6 -6 -6 -6 -6 -6 -6 -5 -5 -5 -5 -5 -5 -4 -4 -4 -4 -4 -4 -4 -3 -3 -3 -3 -2 -2 -1 -1 --------- Run | Yrd Mat Sub Rec Scr Fac Was Fac Ext Cet Arc Hub Fac Was Fac Upp Upp Zhi Pro Fac Was Fac Upp Upp War Pro Res Qua Sec Res DSF Acc Com Machines Accessed 128 | . . 1 6 4 21 . 12 11 1 . 4 3 . 11 1 1 . . 12 . 17 1 . 2 . 4 11 3 1 . . 1 Terminals 66 | . . . 4 . 8 . 5 10 1 . 4 1 . 4 . 1 . . 5 . 8 . . . . 3 8 2 1 . . 1 Fabricators 9 | . . . . . . . . . . . . . . 2 . . . . 2 . 5 . . . . . . . . . . . Repair Stations 8 | . . . . . 1 . 2 . . . . . . 1 . . . . 1 . 1 . . . . . 1 1 . . . . Recycling Units 20 | . . . 2 . 6 . 4 1 . . . 2 . 2 . . . . 3 . . . . . . . . . . . . . Scanalyzers 6 | . . . . . 2 . . . . . . . . 1 . . . . . . 1 . . . . 1 1 . . . . . Garrison Access 10 | . . . . . 4 . 1 . . . . . . 1 . . . . 1 . 2 . . . . . 1 . . . . . Total Hacks 352 | . . 4 20 26 44 . 19 20 2 . 11 6 . 43 1 1 . . 33 . 67 1 . 6 . 9 25 10 3 . . 1 Successful 202 | . . 4 11 26 18 . 7 8 1 . 5 3 . 28 1 1 . . 16 . 40 1 . 6 . 4 15 5 1 . . 1 Failed 148 | . . . 9 . 25 . 12 12 1 . 6 3 . 15 . . . . 16 . 27 . . . . 5 10 5 2 . . . Catastrophic 29 | . . . 1 . 5 . 3 1 . . . 1 . 4 . . . . 6 . 3 . . . . . 3 2 . . . . Database Lockouts 2 | . . . . . 1 . . . . . . . . . . . . . 1 . . . . . . . . . . . . . Manual 172 | . . . 18 . 23 . 9 13 1 . 11 4 . 21 . . . . 28 . 27 . . . . 2 10 5 . . . . Terminals 191 | . . . 18 . 21 . 9 19 2 . 11 2 . 22 . 1 . . 21 . 29 . . . . 7 17 8 3 . . 1 Fabricators 37 | . . . . . . . . . . . . . . 8 . . . . 3 . 26 . . . . . . . . . . . Repair Stations 21 | . . . . . 3 . 4 . . . . . . 2 . . . . 3 . 3 . . . . . 4 2 . . . . Recycling Units 26 | . . . 2 . 8 . 5 1 . . . 4 . 2 . . . . 4 . . . . . . . . . . . . . Scanalyzers 24 | . . . . . 6 . . . . . . . . 7 . . . . . . 6 . . . . 2 3 . . . . . Garrison Access 15 | . . . . . 6 . 1 . . . . . . 2 . . . . 2 . 3 . . . . . 1 . . . . . Terminal Hacks 93 | . . 4 4 26 2 . . 5 1 . 1 . . 11 1 1 . . 4 . 10 1 . 6 . 2 8 4 1 . . 1 Record 28 | . . 4 1 20 . . . . 1 . . . . . . 1 . . . . . . . . . . 1 . . . . . Part Schematic 6 | . . . 1 . . . . . . . . . . 3 . . . . 1 . 1 . . . . . . . . . . . Robot Schematic 1 | . . . 1 . . . . . . . . . . . . . . . . . . . . . . . . . . . . . Robot Analysis 5 | . . . . 5 . . . . . . . . . . . . . . . . . . . . . . . . . . . . Prototype ID Bank 6 | . . . 1 . . . . . . . . . . . . . . . . . . . . 5 . . . . . . . . Open Door 10 | . . . . . . . . 4 . . . . . . 1 . . . . . . 1 . 1 . 1 1 . . . . 1 Open DSF 1 | . . . . . . . . . . . . . . . . . . . . . . . . . . . . . 1 . . . Level Access Points 2 | . . . . . . . . . . . 1 . . . . . . . . . . . . . . . . 1 . . . . Branch Access Points 2 | . . . . . . . . . . . . . . 1 . . . . . . 1 . . . . . . . . . . . Machine Index 1 | . . . . . . . . . . . . . . . . . . . 1 . . . . . . . . . . . . . Terminal Index 1 | . . . . . . . . . . . . . . 1 . . . . . . . . . . . . . . . . . . Fabricator Index 2 | . . . . . . . . . . . . . . 1 . . . . . . 1 . . . . . . . . . . . Recycling Unit Index 1 | . . . . . . . . . . . . . . . . . . . . . 1 . . . . . . . . . . . Unreport Threat 7 | . . . . . . . . . . . . . . 1 . . . . . . 2 . . . . 1 1 2 . . . . Locate Traps 1 | . . . . . . . . . . . . . . . . . . . . . . . . . . . 1 . . . . . Maintenance Status 6 | . . . . . 1 . . . . . . . . 1 . . . . 1 . 1 . . . . . 1 1 . . . . Patrol Status 3 | . . . . . 1 . . . . . . . . . . . . . . . . . . . . . 2 . . . . . Recall Investigation 2 | . . . . . . . . 1 . . . . . 1 . . . . . . . . . . . . . . . . . . Recall Extermination 2 | . . . . . . . . . . . . . . 1 . . . . . . 1 . . . . . . . . . . . Recall Reinforcements 1 | . . . . . . . . . . . . . . . . . . . . . 1 . . . . . . . . . . . Zone Layout 4 | . . . . . . . . . . . . . . 1 . . . . 1 . 1 . . . . . 1 . . . . . Proto ID Catalog 1 | . . . . 1 . . . . . . . . . . . . . . . . . . . . . . . . . . . . Fabricator Hacks 24 | . . . . . . . . . . . . . . 8 . . . . 1 . 15 . . . . . . . . . . . Load Schematic 14 | . . . . . . . . . . . . . . 4 . . . . 1 . 9 . . . . . . . . . . . Build 10 | . . . . . . . . . . . . . . 4 . . . . . . 6 . . . . . . . . . . . Repair Station Hacks 10 | . . . . . 3 . 1 . . . . . . 2 . . . . . . 2 . . . . . 2 . . . . . Scan Component 6 | . . . . . 2 . 1 . . . . . . 1 . . . . . . 1 . . . . . 1 . . . . . Repair 4 | . . . . . 1 . . . . . . . . 1 . . . . . . 1 . . . . . 1 . . . . . Recycling Unit Hacks 1 | . . . . . . . . . . . . 1 . . . . . . . . . . . . . . . . . . . . Retrieve Components 1 | . . . . . . . . . . . . 1 . . . . . . . . . . . . . . . . . . . . Scanalyzer 15 | . . . . . 2 . . . . . . . . 4 . . . . . . 5 . . . . 2 2 . . . . . Insert Component 4 | . . . . . . . . . . . . . . 1 . . . . . . 2 . . . . 1 . . . . . . Analyze 4 | . . . . . . . . . . . . . . 1 . . . . . . 2 . . . . 1 . . . . . . Retrieve Study 7 | . . . . . 2 . . . . . . . . 2 . . . . . . 1 . . . . . 2 . . . . . Garrison Access Hacks 10 | . . . . . 4 . 1 . . . . . . 1 . . . . 1 . 2 . . . . . 1 . . . . . Seal Access 10 | . . . . . 4 . 1 . . . . . . 1 . . . . 1 . 2 . . . . . 1 . . . . . Unauthorized Hacks 49 | . . . 7 . 7 . 5 3 . . 4 2 . 2 . . . . 10 . 6 . . . . . 2 1 . . . . Terminals 21 | . . . 5 . 2 . 1 2 . . 4 . . . . . . . 4 . 1 . . . . . 2 . . . . . Assimilate 3 | . . . . . 1 . . . . . 1 . . . . . . . . . . . . . . . 1 . . . . . Botnet 10 | . . . 2 . 1 . 1 2 . . 1 . . . . . . . 2 . 1 . . . . . . . . . . . Disrupt 2 | . . . . . . . . . . . . . . . . . . . 1 . . . . . . . 1 . . . . . Operators 1 | . . . . . . . . . . . . . . . . . . . 1 . . . . . . . . . . . . . Skim 3 | . . . 3 . . . . . . . . . . . . . . . . . . . . . . . . . . . . . Sabotage 2 | . . . . . . . . . . . 2 . . . . . . . . . . . . . . . . . . . . . Fabricators 7 | . . . . . . . . . . . . . . . . . . . 2 . 5 . . . . . . . . . . . Prioritize 2 | . . . . . . . . . . . . . . . . . . . . . 2 . . . . . . . . . . . Recompile 5 | . . . . . . . . . . . . . . . . . . . 2 . 3 . . . . . . . . . . . Repair Stations 2 | . . . . . . . . . . . . . . . . . . . 1 . . . . . . . . 1 . . . . Patch 2 | . . . . . . . . . . . . . . . . . . . 1 . . . . . . . . 1 . . . . Recycling Units 19 | . . . 2 . 5 . 4 1 . . . 2 . 2 . . . . 3 . . . . . . . . . . . . . Tunnel 2 | . . . 2 . . . . . . . . . . . . . . . . . . . . . . . . . . . . . Fedlink 17 | . . . . . 5 . 4 1 . . . 2 . 2 . . . . 3 . . . . . . . . . . . . . Scanalyzers . | . . . . . . . . . . . . . . . . . . . . . . . . . . . . . . . . . Garrison Access . | . . . . . . . . . . . . . . . . . . . . . . . . . . . . . . . . . Data Cores Recovered 1 | . . . . . . . . . . . . . . . . . . . . . . . . . . . . 1 . . . . Used . | . . . . . . . . . . . . . . . . . . . . . . . . . . . . . . . . . Hacking Detections 74 | . . . 4 . 14 . 8 7 1 . 2 1 . 5 . 1 . . 8 . 11 . . . . 2 7 3 . . . . Full Trace Events 10 | . . . . . 3 . . . . . . . . 3 . . . . 1 . 2 . . . . . 1 . . . . . Feedback Events . | . . . . . . . . . . . . . . . . . . . . . . . . . . . . . . . . . Feedback Blocked . | . . . . . . . . . . . . . . . . . . . . . . . . . . . . . . . . . Robot Schematics Acquired 1 | . . . 1 . . . . . . . . . . . . . . . . . . . . . . . . . . . . . Robots Built . | . . . . . . . . . . . . . . . . . . . . . . . . . . . . . . . . . Authchips . | . . . . . . . . . . . . . . . . . . . . . . . . . . . . . . . . . Time . | . . . . . . . . . . . . . . . . . . . . . . . . . . . . . . . . . Total Robot Build Rating . | . . . . . . . . . . . . . . . . . . . . . . . . . . . . . . . . . Part Schematics Acquired 10 | . . . 1 . . . . . . . . . . 4 . . . . 1 . 3 . . . . 1 . . . . . . Parts Built 11 | . . . . . . . . . . . . . . 5 . . . . . . 6 . . . . . . . . . . . Authchips 7 | . . . . . . . . . . . . . . 2 . . . . . . 5 . . . . . . . . . . . Time 498 | . . . . . . . . . . . . . . 162 . . . . . . 336 . . . . . . . . . . . Total Part Build Rating 67 | . . . . . . . . . . . . . . 31 . . . . . . 36 . . . . . . . . . . . Part Studies Acquired 7 | . . . . . 2 . . . . . . . . 2 . . . . . . 1 . . . . . 2 . . . . . Parts Repaired 4 | . . . . . 1 . . . . . . . . 1 . . . . . . 1 . . . . . 1 . . . . . Time 171 | . . . . . 32 . . . . . . . . 68 . . . . . . 34 . . . . . 37 . . . . . Parts Recycled . | . . . . . . . . . . . . . . . . . . . . . . . . . . . . . . . . . Recycled Matter . | . . . . . . . . . . . . . . . . . . . . . . . . . . . . . . . . . Retrieved Matter . | . . . . . . . . . . . . . . . . . . . . . . . . . . . . . . . . . Retrieved Components . | . . . . . . . . . . . . . . . . . . . . . . . . . . . . . . . . . Parts Scanalyzed 4 | . . . . . . . . . . . . . . 1 . . . . . . 2 . . . . 1 . . . . . . Part Schematics Acquired 4 | . . . . . . . . . . . . . . 1 . . . . . . 2 . . . . 1 . . . . . . Parts Damaged . | . . . . . . . . . . . . . . . . . . . . . . . . . . . . . . . . . Bothacking | -11 -10 -10 -9 -9 -6 -6 -6 -6 -6 -6 -6 -5 -5 -5 -5 -5 -5 -4 -4 -4 -4 -4 -4 -4 -3 -3 -3 -3 -2 -2 -1 -1 ------------ Run | Yrd Mat Sub Rec Scr Fac Was Fac Ext Cet Arc Hub Fac Was Fac Upp Upp Zhi Pro Fac Was Fac Upp Upp War Pro Res Qua Sec Res DSF Acc Com Used RIF Installer . | . . . . . . . . . . . . . . . . . . . . . . . . . . . . . . . . . Robots Hacked 3 | . . . . . 1 . . . . . . . . . . . . . 2 . . . . . . . . . . . . . Non-combat 3 | . . . . . 1 . . . . . . . . . . . . . 2 . . . . . . . . . . . . . Combat . | . . . . . . . . . . . . . . . . . . . . . . . . . . . . . . . . . Robot Hacks Applied 3 | . . . . . 1 . . . . . . . . . . . . . 2 . . . . . . . . . . . . . find_chute 2 | . . . . . 1 . . . . . . . . . . . . . 1 . . . . . . . . . . . . . find_station 1 | . . . . . . . . . . . . . . . . . . . 1 . . . . . . . . . . . . . Relay Couplers Released 4 | . . . . . . . . . . . . . . . . . . . . . 2 . . . . . . . . . 2 . Machine Destruction 4 | . . . . . . . . . . . . . . . . . . . . . 2 . . . . . . . . . 2 . Fabnet Peak Effective % . | . . . . . . . . . . . . . . . . . . . . . . . . . . . . . . . . . Robots Rewired 16 | . . . . . . . . 11 . . . . . . . . . . . . . . . 5 . . . . . . . . Allies Hacked . | . . . . . . . . . . . . . . . . . . . . . . . . . . . . . . . . . Hacks Repelled . | . . . . . . . . . . . . . . . . . . . . . . . . . . . . . . . . . Allies | -11 -10 -10 -9 -9 -6 -6 -6 -6 -6 -6 -6 -5 -5 -5 -5 -5 -5 -4 -4 -4 -4 -4 -4 -4 -3 -3 -3 -3 -2 -2 -1 -1 -------- Run | Yrd Mat Sub Rec Scr Fac Was Fac Ext Cet Arc Hub Fac Was Fac Upp Upp Zhi Pro Fac Was Fac Upp Upp War Pro Res Qua Sec Res DSF Acc Com Total Allies 133 | . . . . . 1 1 . 15 5 . . . 19 . . . . . . 19 . . . 5 . . 1 . 7 13 27 20 Largest Group 19 | . . . . . 1 1 . 9 7 6 4 . 19 13 . . . . . 19 10 . . 5 2 2 1 . 6 6 14 8 Highest-Rated Group 702 | . . . . . 10 31 . 383 501 501 377 . 684 484 . . . . . 702 406 . . 286 120 120 45 . 88 84 203 112 Highest-Rated Ally 159 | . . . . . 10 31 . 159 153 96 96 . 50 46 . . . . . 50 46 . . 64 64 64 45 . 15 15 15 15 Initial UFD Resources 98 | . . . . . 22 42 42 50 52 52 52 55 69 69 73 73 73 75 75 91 91 91 91 91 93 93 93 93 95 95 98 98 Total Orders 10 | . . . . . . . . . . 2 1 . . . . . . . . . . . . 7 . . . . . . . . STAY 7 | . . . . . . . . . . 1 1 . . . . . . . . . . . . 5 . . . . . . . . FOLLOW 3 | . . . . . . . . . . 1 . . . . . . . . . . . . . 2 . . . . . . . . Ally Attacks 795 | . . . . . . 1 . 168 21 38 64 . 167 36 . . . . . 67 111 . . 20 4 20 . . . 21 30 27 Total Damage 25668 | . . . . . . . . 4474 511 1399 2486 . 5573 925 . . . . . 4528 3305 . . 504 147 744 . . . 307 482 283 Kills 106 | . . . . . . . . 28 3 4 11 . 10 8 . . . . . 12 17 . . 4 2 5 . . . 1 1 . Allies Corrupted 3 | . . . . . . . . . . . . . . 1 . . . . . . 2 . . . . . . . . . . . Allies Melted 4 | . . . . . . . . . . . . . . . . . . . . 1 . . . 3 . . . . . . . . Intel | -11 -10 -10 -9 -9 -6 -6 -6 -6 -6 -6 -6 -5 -5 -5 -5 -5 -5 -4 -4 -4 -4 -4 -4 -4 -3 -3 -3 -3 -2 -2 -1 -1 ------- Run | Yrd Mat Sub Rec Scr Fac Was Fac Ext Cet Arc Hub Fac Was Fac Upp Upp Zhi Pro Fac Was Fac Upp Upp War Pro Res Qua Sec Res DSF Acc Com Active Infowar (turns) 14261 | . . 25 . . 771 19 433 948 388 394 315 151 312 862 449 451 178 779 567 445 1856 984 391 1074 397 179 747 305 . 181 257 403 Optics 13257 | . . 16 . . 552 19 433 948 388 394 315 151 312 851 449 451 178 779 567 445 1846 984 391 1074 397 179 747 305 . 86 . . Sensors 3082 | . . . . . 735 19 433 355 . . 285 151 293 811 . . . . . . . . . . . . . . . . . . A.S.S. 1 | . . . . . . . . . . . . . . . . . . . . . . . . . . . . . . 1 . . Terrain 1 | . . . . . . . . . . . . . . . . . . . . . . . . . . . . . . 1 . . Structural 599 | . . . . . . . . . . . . . . . . . . . . . . . . . . 23 287 289 . . . . Seismic 4519 | . . 9 . . 3 . . . . . . . . . . . . . . . 1398 491 391 1055 380 167 625 . . . . . Machine Analysis 28 | . . . . . 28 . . . . . . . . . . . . . . . . . . . . . . . . . . . Cloaking 776 | . . . . . . . . . . . . . . . . . . . . . . . . 1 . . . . . 115 257 403 Jamming 5640 | . . . . . . . . . . . . . . . 229 448 168 59 509 331 1290 225 391 617 397 179 687 108 . 2 . . ECM 922 | . . . . . . . . 5 . . . . . . 149 . . 23 435 112 197 . . . . . . . . 1 . . Robot Analysis Total 5 | . . . . 5 . . . . . . . . . . . . . . . . . . . . . . . . . . . . Derelict Logs Recovered 15 | . . 2 . 3 . . . . . . . . . . 2 3 . . . . . 3 2 . . . . . . . . . Drone Launches . | . . . . . . . . . . . . . . . . . . . . . . . . . . . . . . . . . Drone Recoveries . | . . . . . . . . . . . . . . . . . . . . . . . . . . . . . . . . . Exploration | -11 -10 -10 -9 -9 -6 -6 -6 -6 -6 -6 -6 -5 -5 -5 -5 -5 -5 -4 -4 -4 -4 -4 -4 -4 -3 -3 -3 -3 -2 -2 -1 -1 ------------- Run | Yrd Mat Sub Rec Scr Fac Was Fac Ext Cet Arc Hub Fac Was Fac Upp Upp Zhi Pro Fac Was Fac Upp Upp War Pro Res Qua Sec Res DSF Acc Com Turns Passed 26339 | 350 46 5304 1867 3708 1203 19 433 948 388 394 315 151 312 864 449 451 178 779 567 445 1856 984 391 1074 397 179 747 433 111 312 281 403 Spaces Moved 26231 | 120 25 2854 762 1636 2026 66 1261 1297 216 324 431 268 338 1231 639 699 208 360 703 382 2553 977 669 1302 768 226 1121 939 131 304 586 809 Core 147 | 6 . . . 132 9 . . . . . . . . . . . . . . . . . . . . . . . . . . . Treads 5280 | 114 25 2811 762 1504 64 . . . . . . . . . . . . . . . . . . . . . . . . . . . Legs 1975 | . . . . . . . . . . . . . . . . . . . . . . . . . . . . 279 131 304 586 675 Wheels 155 | . . 43 . . 112 . . . . . . . . . . . . . . . . . . . . . . . . . . . Hover 13878 | . . . . . . . . . 169 324 431 268 338 1231 639 699 208 360 703 382 2553 977 669 1302 768 226 1121 510 . . . . Flight 4512 | . . . . . 1841 66 1261 1297 47 . . . . . . . . . . . . . . . . . . . . . . . Fastest Speed 24 | 50 160 110 160 50 24 26 26 25 26 53 52 53 53 53 58 58 45 52 48 52 44 52 52 37 37 37 29 27 30 30 30 30 Average Speed 74 | 154 160 159 237 208 38 26 26 25 51 53 52 53 53 54 58 59 58 55 53 59 52 53 52 47 37 43 43 36 68 53 36 30 Slowest Speed 254 | 160 160 160 240 250 254 26 29 28 110 53 53 53 110 118 58 114 114 114 105 102 114 102 52 106 37 121 121 43 90 90 90 90 Overloaded Moves 83 | . . . . . . . . . . . . . . . . . . . . . 18 . . 11 . . 51 3 . . . . Propulsion Burnouts . | . . . . . . . . . . . . . . . . . . . . . . . . . . . . . . . . . Robots Hopped 33 | . . . . . 19 . 6 8 . . . . . . . . . . . . . . . . . . . . . . . . Potential Cave-ins 15 | . . . . . . . . . . . . . . . . . . . 3 . . . . 2 . . 8 . . . . 2 Cave-ins Triggered 2 | . . . . . . . . . . . . . . . . . . . . . . . . . . . . 1 . . . 1 Teleports 1 | . . . . . . . . . . . . . . . . . . . . . . . . . . . . 1 . . . . Microwarps 23 | . . . . . . . . . . . . . . . . . . . . . . . . . . . . 15 . . . 8 Exploration Rate (%) 60 | 4 10 97 96 84 54 77 30 90 66 98 42 10 94 23 86 88 58 60 21 96 59 81 80 94 82 12 90 61 5 95 24 24 Regions Visited 32 Branch Regions 18 Pre-discovered Areas 9 | . . 1 2 3 1 . . . . . . . . . . . . . . . . 2 . . . . . . . . . . Known Exits Taken 16 | . . . . 1 . . 1 1 1 1 1 . . 1 1 1 1 1 . . 1 . . . 1 1 . 1 1 . . . Unknown Exits Taken 9 | 1 1 1 1 . . . . . . . . . . . . . . . . . . 1 1 1 . . 1 . . . 1 . Scrap Searched 25 | . . 7 . 6 . . . . . . . . . . 4 . . 1 . . . 1 3 . 3 . . . . . . . Spaces Dug 381 | . . . 3 . 52 . 8 6 . . 3 1 . 5 3 23 . . 26 . 104 . 2 4 24 18 25 17 5 20 23 9 Terrain Destroyed 1081 | . . 20 4 . 59 . 8 6 2 . 3 1 . 44 4 23 . 44 38 2 244 149 2 6 24 61 49 23 5 78 69 113 Melee 103 | . . . . . 30 . 8 6 . . 3 1 . 5 2 3 . . . . . . 2 4 2 3 25 9 . . . . Projectile 371 | . . 3 4 . 7 . . . 2 . . . . . 2 3 . 12 38 2 40 6 . . . . 1 14 5 58 61 113 AOE 607 | . . 17 . . 22 . . . . . . . . 39 . 17 . 32 . . 204 143 . 2 22 58 23 . . 20 8 . Terrain Rammed . | . . . . . . . . . . . . . . . . . . . . . . . . . . . . . . . . . Walls Destroyed . | . . . . . . . . . . . . . . . . . . . . . . . . . . . . . . . . . Machines Disabled . | . . . . . . . . . . . . . . . . . . . . . . . . . . . . . . . . . Actions | -11 -10 -10 -9 -9 -6 -6 -6 -6 -6 -6 -6 -5 -5 -5 -5 -5 -5 -4 -4 -4 -4 -4 -4 -4 -3 -3 -3 -3 -2 -2 -1 -1 --------- Run | Yrd Mat Sub Rec Scr Fac Was Fac Ext Cet Arc Hub Fac Was Fac Upp Upp Zhi Pro Fac Was Fac Upp Upp War Pro Res Qua Sec Res DSF Acc Com Total 31787 | 217 31 3502 806 1935 2287 67 1335 1855 472 520 495 275 465 1401 708 723 251 894 854 588 2955 1327 703 1746 862 281 1267 893 149 446 640 837 Wait 3942 | 52 7 524 . 257 108 . 55 468 213 166 46 . 105 112 52 10 . 475 74 178 167 241 17 342 70 10 53 1 13 10 13 103 Move 25874 | 119 24 2853 761 1635 1989 65 1248 1281 215 323 430 268 337 1230 638 698 207 359 703 381 2552 976 668 1301 767 225 1120 804 130 303 585 679 Hop 31 | . . . . . 18 . 6 7 . . . . . . . . . . . . . . . . . . . . . . . . Pick Up 215 | 5 . 12 18 26 17 1 3 4 2 1 . 2 2 15 2 . 3 4 8 3 23 6 3 10 . 4 7 13 1 15 4 1 Fast Attach 199 | 6 . 5 . 5 22 . 3 6 13 5 3 1 4 5 2 2 14 4 3 4 14 . 2 16 2 4 5 10 1 27 6 5 Attach 112 | . . 4 . 3 10 . . 3 2 . . 1 . 8 2 . . 5 4 1 13 7 . 6 . 7 5 9 1 12 4 5 Detach 48 | . . 2 . . . . . . . . . . . 3 1 . . 1 2 1 7 3 . . . 4 . 6 . 13 3 2 Swap 206 | 1 . 6 3 . 11 . 3 10 . 2 4 1 3 6 4 4 2 4 13 9 53 21 . 7 13 5 11 3 . 6 . 1 Drop 271 | . . 14 7 9 26 1 6 8 10 6 . 1 9 9 2 1 16 4 6 5 32 3 4 25 2 5 6 8 . 32 10 4 Fire 494 | 34 . 70 7 . 17 . . 1 10 . . . . 5 2 4 . 31 41 6 90 64 7 1 5 13 13 9 3 13 14 34 Melee 275 | . . . . . 69 . 11 39 7 17 12 1 5 8 3 4 9 7 . . . 5 2 5 3 4 47 17 . . . . Ram . | . . . . . . . . . . . . . . . . . . . . . . . . . . . . . . . . . Kick . | . . . . . . . . . . . . . . . . . . . . . . . . . . . . . . . . . Crush 10 | . . . 10 . . . . . . . . . . . . . . . . . . . . . . . . . . . . . Escape Stasis 59 | . . . . . . . . 28 . . . . . . . . . . . . . . . . . . . 13 . 15 . 3 Rewire 34 | . . . . . . . . . . . . . . . . . . . . . . . . 33 . . . . . . 1 . Trap . | . . . . . . . . . . . . . . . . . . . . . . . . . . . . . . . . . Miscellaneous 17 | . . 12 . . . . . . . . . . . . . . . . . . 4 1 . . . . . . . . . . Route ------- -11/Scrapyard -10/Materials -10/Subcaves (discovered 4 exits: [*Mat x2] / *Rec / *Scr) -9/Recycling (discovered 2 exits: [*Fac] / *Scr) -9/Scraptown (discovered 2 exits: *Fac x2) -6/Factory (discovered 8 exits: Fac x4 / *Low x2 / *Ext x2) -6/Waste -6/Factory (discovered 5 exits: *Fac x2 / *Low x2 / *Ext) -6/Extension (discovered 2 exits: *Fac / *Cet) -6/Cetus -6/Archives (discovered 3 exits: *Fac / *Hub x2) -6/Hub_04(d) (discovered 4 exits: *Fac x4) -5/Factory -5/Waste -5/Factory (discovered 3 exits: *Fac / *Upp x2) -5/Upper Caves -5/Upper Caves (discovered 2 exits: *Fac / *Zhi) -5/Zhirov -4/Proximity Caves -4/Factory (discovered 3 exits: *Res x2 / *Upp) -4/Waste -4/Factory (discovered 3 exits: *Res / *Upp x2) -4/Upper Caves -4/Upper Caves (discovered 2 exits: *Res / *War) -4/Warlord -3/Proximity Caves -3/Research (discovered 5 exits: Res x2 / [*Arm] / *Qua x2) -3/Quarantine (discovered 3 exits: *Res / *Sec / [*Frg]) -3/Section 7 -2/Research -2/DSF -1/Access -1/Command Tau Ceti IV Orbit History --------- Turn | Location | Event 28 | -11/Scrapyard | Discovered new exit (range 16) 351 | -11/Scrapyard | Entered Materials 352 | -10/Materials | Build established: Mutant 352 | -10/Materials | Met a group of wandering Federalists 389 | -10/Materials | Discovered new exit (range 8) 397 | -10/Materials | Entered Subcaves 398 | -10/Subcaves | Continued accompanying wandering Federalists (5) 519 | -10/Subcaves | Shifting Twisted Machinery released Sub. Shrapnel Launcher 535 | -10/Subcaves | Shifting Twisted Machinery released Flamer 573 | -10/Subcaves | Learned Materials emergency access door positions 619 | -10/Subcaves | Wandering Federalist uncovered a shortcut to Scraptown 887 | -10/Subcaves | Learned Materials non-interactive machine intel 925 | -10/Subcaves | Visited Clippyterm 930 | -10/Subcaves | Learned Research machine intel 930 | -10/Subcaves | Learned Factory garrison access intel 1980 | -10/Subcaves | Disturbed a concealed Subdweller 2321 | -10/Subcaves | Shifting Twisted Machinery released Piercing Trap 2428 | -10/Subcaves | Discovered new exit (range 11) 2518 | -10/Subcaves | Visited 4L-MR0's lab 2863 | -10/Subcaves | Shifting Twisted Machinery released Hvy. Battle Rifle 2873 | -10/Subcaves | Shifting Twisted Machinery released Sub. Beam Cannon 3094 | -10/Subcaves | Discovered new exit (range 13) 3449 | -10/Subcaves | A swath of the cavern ceiling suddenly collapsed 3495 | -10/Subcaves | Shifting Twisted Machinery released Mak. Laser 4252 | -10/Subcaves | Disturbed a concealed Subdweller 4440 | -10/Subcaves | A swath of the cavern ceiling suddenly collapsed 4524 | -10/Subcaves | Learned location of Zion (-7) 4524 | -10/Subcaves | Met a Zionite searching for "candidates" 5080 | -10/Subcaves | Discovered new exit (range 14) 5436 | -10/Subcaves | Found Prototype Protection 5701 | -10/Subcaves | Entered Recycling 6816 | -9/Recycling | Discovered new exit (range 16) 7056 | -9/Recycling | Scanned before Scraplab entrance 7546 | -9/Recycling | Entered Scraplab 7566 | -9/Recycling | Discovered new exit (range 2) 7568 | -9/Recycling | Entered Scraptown 8039 | -9/Scraptown | Discovered new exit (range 13) 8094 | -9/Scraptown | Heard Great Nut preacher, LISTEN AND RECITE! 8562 | -9/Scraptown | Visited UFD Registry 8653 | -9/Scraptown | Registered with UFD as "Alphaslider" 8728 | -9/Scraptown | Visited DA-N13 Charitable Foundation 8737 | -9/Scraptown | Found DCF Scrap (28 items) 8795 | -9/Scraptown | Visited Science Guys 8874 | -9/Scraptown | Visited Abandonware Association 8900 | -9/Scraptown | Learned abandonware demo "ERRANTS.EXE" 8953 | -9/Scraptown | Visited Infowarlord's Domain 8987 | -9/Scraptown | Visited Analyses Database 9028 | -9/Scraptown | Visited Cartography Club 9064 | -9/Scraptown | Visited Scrap Suit Storage 9102 | -9/Scraptown | Visited A0-MCA Data Center 9126 | -9/Scraptown | Given a B- rating by A0-MCA 9129 | -9/Scraptown | Found A0-MCA's Component Scanner 9185 | -9/Scraptown | Visited Scrapoid Pod Storage 9581 | -9/Scraptown | Scanned Subdweller tech in exchange for log data 9588 | -9/Scraptown | Learned Research trap positions 9591 | -9/Scraptown | Learned 8 Factory zone layouts 9593 | -9/Scraptown | Learned Factory trap positions 9840 | -9/Scraptown | Released all parts (7) 9878 | -9/Scraptown | Learned location of Testing (-2) 9878 | -9/Scraptown | Learned location of Storage (-9) 9878 | -9/Scraptown | Learned 16 Materials zone layouts 9878 | -9/Scraptown | Learned 8 Factory zone layouts 9878 | -9/Scraptown | Learned 24 Factory zone layouts 9878 | -9/Scraptown | Learned 8 Upper Caves zone layouts 9878 | -9/Scraptown | Learned 12 Upper Caves zone layouts 9878 | -9/Scraptown | Learned location of 2 exits from Research 9878 | -9/Scraptown | Learned Factory emergency access door positions 9878 | -9/Scraptown | Learned location of 3 exits from Proximity Caves 9878 | -9/Scraptown | Learned location of 3 exits from Lower Caves 9878 | -9/Scraptown | Identified exit to Factory 9895 | -9/Scraptown | Found Deep Structural Scanner 10058 | -9/Scraptown | Found Exp. Sensor Array 10790 | -9/Scraptown | Visited Red Mages 11193 | -9/Scraptown | Met Optimus 11193 | -9/Scraptown | Accepted into 0bPrime 11276 | -9/Scraptown | Entered Factory 11276 | -6/Factory | Evolved 8 slots: Power x1, Propulsion x3, Utility x4 11277 | -6/Factory | Identified exit to Lower Caves 11277 | -6/Factory | Identified exit to Extension 11278 | -6/Factory | Identified exit to Factory 11279 | -6/Factory | Loaded intel: 92 trap records 11281 | -6/Factory | Loaded intel: 4 garrison access locations 11798 | -6/Factory | Repaired VTOL Module+ 12012 | -6/Factory | Loaded intel: 8 recycling unit locations 12062 | -6/Factory | Garrison activated, responded to threat 12115 | -6/Factory | Learned location of Protoforge (-3) 12130 | -6/Factory | Discovered exit to Extension (range 20) 12235 | -6/Factory | Build established: Scout 12327 | -6/Factory | Central database locked down 12479 | -6/Factory | Sucked down chute 12479 | -6/Factory | Entered Waste 12479 | -6/Waste | Spotted C-40 Crusher 12480 | -6/Waste | Met a frightened Derelict 12487 | -6/Waste | Spotted C-40 Crusher 12487 | -6/Waste | Spotted C-40 Crusher 12492 | -6/Waste | Discovered new exit (range 22) 12494 | -6/Waste | EMP discharged 12494 | -6/Waste | System corruption reached 10% 12494 | -6/Waste | Spotted C-40 Crusher 12498 | -6/Waste | Identified exit to Factory 12498 | -6/Waste | Entered Factory 12541 | -6/Factory | Discovered exit to Lower Caves (range 19) 12636 | -6/Factory | Loaded intel: 8 recycling unit locations 12686 | -6/Factory | Discovered exit to Lower Caves (range 5) 12696 | -6/Factory | Discovered exit to Factory (range 7) 12710 | -6/Factory | Discovered exit to Factory (range 22) 12927 | -6/Factory | Discovered exit to Extension (range 19) 12931 | -6/Factory | Entered Extension 12969 | -6/Extension | Rescued a captive Derelict 12970 | -6/Extension | Rescued a captive Derelict 13072 | -6/Extension | Rescued a captive Derelict 13162 | -6/Extension | Rescued A7 13177 | -6/Extension | Spotted B-75 Beast 13300 | -6/Extension | Loaded intel: 1 recycling unit location 13375 | -6/Extension | Attached CPS modules to A7. 13515 | -6/Extension | Spotted B-75 Beast 13525 | -6/Extension | Allies destroyed B-75 Beast 13608 | -6/Extension | Rescued a captive Derelict 13611 | -6/Extension | Rescued a captive Derelict 13828 | -6/Extension | Discovered exit to Factory (range 10) 13829 | -6/Extension | Discovered new exit (range 6) 13839 | -6/Extension | Identified exit to Cetus 13879 | -6/Extension | Entered Cetus 13879 | -6/Cetus | Accompanied by 7 allies (A7) 13884 | -6/Cetus | Acquired a Cetus Manufacturing Module code from A7 13923 | -6/Cetus | Spotted Cetus Guard 13923 | -6/Cetus | Spotted Cetus Guard 13930 | -6/Cetus | Spotted Cetus Guard 13936 | -6/Cetus | Spotted Cetus Guard 13943 | -6/Cetus | Allies destroyed Cetus Guard 13952 | -6/Cetus | Extracted ID and sensor layout for unrecognized location from A7's data core 13959 | -6/Cetus | Allies destroyed Cetus Guard 13975 | -6/Cetus | Core integrity fell below 50% 13975 | -6/Cetus | Destroyed Cetus Guard 13990 | -6/Cetus | Lost 6 allies 13990 | -6/Cetus | Destroyed Cetus Guard 14006 | -6/Cetus | Found Prototype Protection 14006 | -6/Cetus | Identified Med. Regenerative Plating 14014 | -6/Cetus | Lost 4 parts (2n1u1w) 14050 | -6/Cetus | Started Cetus Manufacturing Module 14075 | -6/Cetus | Manufactured an Enhanced Grunt 14100 | -6/Cetus | Manufactured an Enhanced Grunt 14125 | -6/Cetus | Manufactured an Enhanced Grunt 14150 | -6/Cetus | Manufactured an Enhanced Grunt 14175 | -6/Cetus | Manufactured an Enhanced Grunt 14218 | -6/Cetus | Discovered new exit (range 22) 14229 | -6/Cetus | Identified exit to Archives 14267 | -6/Cetus | Entered Archives 14267 | -6/Archives | Accompanied by 6 allies 14313 | -6/Archives | Discovered exit to Factory (range 19) 14315 | -6/Archives | Discovered new exit (range 14) 14331 | -6/Archives | Discovered new exit (range 22) 14499 | -6/Archives | Build established: Scavenger-Mutant 14608 | -6/Archives | Identified exit to Hub_04(d) 14661 | -6/Archives | Entered Hub_04(d) 14661 | -6/Hub_04(d) | Accompanied by 4 allies 14665 | -6/Hub_04(d) | Spotted B-75 Beast 14934 | -6/Hub_04(d) | Network Hub disabled 14962 | -6/Hub_04(d) | Build established: Scavenger-Scout 14976 | -6/Hub_04(d) | Spotted Lightning 14976 | -6/Hub_04(d) | Entered Factory 14976 | -5/Factory | Evolved 2 slots: Utility x2 15000 | -5/Factory | Loaded intel: 8 recycling unit locations 15099 | -5/Factory | Discovered new exit (range 16) 15106 | -5/Factory | Identified exit to Upper Caves 15127 | -5/Factory | Sucked down chute 15127 | -5/Factory | Entered Waste 15139 | -5/Waste | Spotted C-40 Crusher 15151 | -5/Waste | Spotted C-40 Crusher 15157 | -5/Waste | Warlord forces began an assault 15165 | -5/Waste | Allies destroyed C-40 Crusher 15212 | -5/Waste | Spotted C-40 Crusher 15233 | -5/Waste | Allies destroyed C-40 Crusher 15234 | -5/Waste | Spotted C-40 Crusher 15237 | -5/Waste | Allies destroyed C-40 Crusher 15239 | -5/Waste | Spotted C-40 Crusher 15250 | -5/Waste | Found Fusion Bomb Launcher 15263 | -5/Waste | Lost 4 allies 15299 | -5/Waste | Spotted C-40 Crusher 15372 | -5/Waste | Discovered new exit (range 12) 15409 | -5/Waste | Identified exit to Factory 15439 | -5/Waste | Entered Factory 15439 | -5/Factory | Accompanied by 13 allies 15457 | -5/Factory | Loaded intel: 8 recycling unit locations 15579 | -5/Factory | Repaired Antigrav Array? 15664 | -5/Factory | Discovered new exit (range 13) 15821 | -5/Factory | Fabricated Lrn. Missile Launcher (x1) 15910 | -5/Factory | Fabricated Antigrav Array (x1) 15954 | -5/Factory | Fabricated Antigrav Array? 16012 | -5/Factory | Fabricated Launcher Loader (x2) 16303 | -5/Factory | Entered Upper Caves 16304 | -5/Upper Caves | Identified exit to Upper Caves 16423 | -5/Upper Caves | Learned location of 1 exit from Factory 16441 | -5/Upper Caves | Attracted the attention of an 0b10 checkpoint 16622 | -5/Upper Caves | Build established: Scavenger-Mutant 16623 | -5/Upper Caves | Learned 4 Factory zone layouts 16752 | -5/Upper Caves | Entered another Upper Caves area 16812 | -5/Upper Caves | Encountered a Warlord checkpoint 16815 | -5/Upper Caves | Discovered new exit (range 11) 16820 | -5/Upper Caves | Identified exit to Factory 16840 | -5/Upper Caves | Learned 4 Factory zone layouts 17037 | -5/Upper Caves | Learned location of 1 exit from Factory 17063 | -5/Upper Caves | Found Alien Artifact 17063 | -5/Upper Caves | Identified Dimensional Node Initializer 17063 | -5/Upper Caves | Initialized slip node 17153 | -5/Upper Caves | Discovered new exit (range 16) 17201 | -5/Upper Caves | Attracted the attention of an 0b10 checkpoint 17202 | -5/Upper Caves | Identified exit to Zhirov 17203 | -5/Upper Caves | Entered Zhirov 17203 | -5/Zhirov | Discovered new exit (range 3) 17214 | -5/Zhirov | Met Zhirov 17230 | -5/Zhirov | Found Alien Artifact 17230 | -5/Zhirov | Identified Integrated Reactor 17230 | -5/Zhirov | Installed Integrated Reactor, increased core energy generation (+10) 17308 | -5/Zhirov | Found Alien Artifact 17378 | -5/Zhirov | Identified exit to Proximity Caves 17381 | -5/Zhirov | Entered Proximity Caves 17383 | -4/Proximity Caves | Attracted the attention of an 0b10 checkpoint 17454 | -4/Proximity Caves | System corruption reached 10% 18160 | -4/Proximity Caves | Entered Factory 18160 | -4/Factory | Evolved 2 slots: Propulsion x1, Utility x1 18161 | -4/Factory | Identified exit to Upper Caves 18161 | -4/Factory | Identified exit to Research 18175 | -4/Factory | Loaded intel: 8 recycling unit locations 18329 | -4/Factory | Watched by a mysterious "MATRIX" hacker. 18334 | -4/Factory | Discovered exit to Research (range 22) 18353 | -4/Factory | Central database locked down 18504 | -4/Factory | Spotted B-86 Titan 18727 | -4/Factory | Sucked down chute 18727 | -4/Factory | Entered Waste 18732 | -4/Waste | Spotted C-40 Crusher 18732 | -4/Waste | Spotted C-40 Crusher 18736 | -4/Waste | Spotted C-40 Crusher 18759 | -4/Waste | Spotted C-40 Crusher 18760 | -4/Waste | Spotted C-40 Crusher 18809 | -4/Waste | Warlord forces began an assault 18818 | -4/Waste | Allies destroyed C-40 Crusher 18909 | -4/Waste | Spotted C-40 Crusher 18925 | -4/Waste | Allies destroyed C-40 Crusher 18935 | -4/Waste | Discovered new exit (range 10) 19140 | -4/Waste | Identified exit to Factory 19172 | -4/Waste | Entered Factory 19172 | -4/Factory | Accompanied by 10 allies 19184 | -4/Factory | Build established: Infiltrator-Mutant 19245 | -4/Factory | Found Prototype Launcher 19245 | -4/Factory | Identified Tesla Bomb Launcher 19248 | -4/Factory | Found Prototype Launcher 19248 | -4/Factory | Identified Com. Tesla Bomb Launcher 19589 | -4/Factory | Build established: Scavenger-Mutant 19849 | -4/Factory | P-70 Sage assimilated allied JE-DI1(l) 19909 | -4/Factory | Spotted B-86 Titan 19945 | -4/Factory | Lost 3 allies 19970 | -4/Factory | Fabricated Cld. Gravmag System (x1) 19983 | -4/Factory | Repaired Antigrav Array? 20024 | -4/Factory | Fabricated Cld. Gravmag System (x1) 20096 | -4/Factory | Build established: Hacker-Mutant 20172 | -4/Factory | First assault squad dispatched 20268 | -4/Factory | Fabricated Tiamat Missile Launcher? 20331 | -4/Factory | Fabricated Cld. Gravmag System? 20369 | -4/Factory | Garrison activated, responded to threat 20494 | -4/Factory | Discovered exit to Research (range 20) 20649 | -4/Factory | Spotted B-86 Titan 20851 | -4/Factory | Build established: Scavenger-Mutant 20863 | -4/Factory | Fabricated Cld. Gravmag System (x1) 20908 | -4/Factory | Fabricated Tiamat Missile Launcher? 21028 | -4/Factory | Entered Upper Caves 21120 | -4/Upper Caves | Attracted the attention of an 0b10 outpost 21727 | -4/Upper Caves | Learned 4 Research zone layouts 21781 | -4/Upper Caves | Learned location of Armory (-3) 21788 | -4/Upper Caves | Ambushed by wild Derelicts 21987 | -4/Upper Caves | Encountered a Warlord checkpoint 21987 | -4/Upper Caves | Discovered new exit (range 13) 22012 | -4/Upper Caves | Entered another Upper Caves area 22078 | -4/Upper Caves | Discovered exit to Research (range 20) 22149 | -4/Upper Caves | Spotted B-86 Titan 22186 | -4/Upper Caves | Discovered new exit (range 12) 22194 | -4/Upper Caves | Found DCF Scrap (11 items) 22195 | -4/Upper Caves | Learned location of 1 exit from Research 22224 | -4/Upper Caves | Learned Research emergency access door positions 22403 | -4/Upper Caves | Entered Warlord 22421 | -4/Warlord | System corruption cleaned by Quarantine Array 22483 | -4/Warlord | Visited the Vortex Lab 22487 | -4/Warlord | Found Prototype Piercing Weapon 22487 | -4/Warlord | Identified Vortex Lance 22491 | -4/Warlord | Warlord's base attacked by MAIN.C 22531 | -4/Warlord | Build established: Hacker-Mutant 22531 | -4/Warlord | Found Prototype Device 22531 | -4/Warlord | Identified Exp. Focal Shield 22536 | -4/Warlord | Found Prototype Device 22536 | -4/Warlord | Identified Exp. Cloaking Device 22544 | -4/Warlord | Found Prototype Hackware 22544 | -4/Warlord | Identified System Mapper 22547 | -4/Warlord | Found Prototype Processor 22547 | -4/Warlord | Identified Exp. Armor Integrity Analyzer 22554 | -4/Warlord | Found Prototype Reactor 22554 | -4/Warlord | Identified Vortex Chain Reactor 22841 | -4/Warlord | Warlord forces counterattacked 22868 | -4/Warlord | Rebuked by Warlord 22926 | -4/Warlord | Found Vortex Lance 23041 | -4/Warlord | Spotted Striker 23079 | -4/Warlord | Lost 4 allies 23166 | -4/Warlord | Warlord base infiltrated, sounded retreat 23167 | -4/Warlord | Enhanced Grunt warped into view 23167 | -4/Warlord | Enhanced Grunt warped into view 23167 | -4/Warlord | Enhanced Grunt warped into view 23167 | -4/Warlord | Enhanced Demolisher warped into view 23167 | -4/Warlord | Enhanced Demolisher warped into view 23167 | -4/Warlord | Enhanced Demolisher warped into view 23190 | -4/Warlord | Spotted Striker 23257 | -4/Warlord | Spotted Executioner 23307 | -4/Warlord | Discovered new exit (range 9) 23374 | -4/Warlord | Lost 15 allies 23477 | -4/Warlord | Entered Proximity Caves 23477 | -3/Proximity Caves | Accompanied by 2 allies 23570 | -3/Proximity Caves | Build established: Scavenger-Mutant 23740 | -3/Proximity Caves | Spotted B-86 Titan 23874 | -3/Proximity Caves | Entered Research 23874 | -3/Research | Accompanied by 2 allies 23874 | -3/Research | Evolved 2 slots: Propulsion x1, Utility x1 23875 | -3/Research | Identified exit to Research 23875 | -3/Research | Identified exit to Quarantine 23877 | -3/Research | Loaded intel: 63 trap records 23879 | -3/Research | Loaded intel: 103 machine locations 24006 | -3/Research | Discovered new exit (range 12) 24053 | -3/Research | Entered Quarantine 24116 | -3/Quarantine | Found Alien Artifact 24136 | -3/Quarantine | Discovered exit to Research (range 8) 24198 | -3/Quarantine | Targeted by mysterious "MATRIX" hacker. 24212 | -3/Quarantine | Repaired Cmb. Linear Gravjet+? 24422 | -3/Quarantine | Lost 3 parts (1u2w) 24429 | -3/Quarantine | Cryocooling Duct disabled 24444 | -3/Quarantine | Ambient heat levels rising (+20) 24444 | -3/Quarantine | Non-combat units ordered to evacuate 24444 | -3/Quarantine | Cryocooling Duct disabled 24459 | -3/Quarantine | Ambient heat levels rising (+20) 24459 | -3/Quarantine | Combat units ordered to evacuate 24480 | -3/Quarantine | Found Alien Artifact 24480 | -3/Quarantine | Identified Core Reset Matrix 24480 | -3/Quarantine | Identified Subatomic Replicator 24480 | -3/Quarantine | Identified Transdimensional Reconstructor 24480 | -3/Quarantine | Used Core Reset Matrix 24484 | -3/Quarantine | Detected hypermatrix surge 24484 | -3/Quarantine | Sensed 6 artifacts in vicinity 24559 | -3/Quarantine | Quarantine Guard activated 24582 | -3/Quarantine | Met incapacitated Sigix Warrior 24582 | -3/Quarantine | Lockdown squad dispatched 24594 | -3/Quarantine | Acquired the access code to the Sigix quarantine chamber 24595 | -3/Quarantine | Unlocked Sigix quarantine chamber 24614 | -3/Quarantine | Found Sigix Containment Pod 24646 | -3/Quarantine | Spotted Quarantine Guard 24677 | -3/Quarantine | Spotted Quarantine Guard 24686 | -3/Quarantine | Spotted Quarantine Guard 24696 | -3/Quarantine | Found Terrabomb 24700 | -3/Quarantine | Discovered exit to Research (range 3) 24700 | -3/Quarantine | Spotted Quarantine Guard 24712 | -3/Quarantine | Spotted Quarantine Guard 24714 | -3/Quarantine | Lost 3 parts (1n1u1w) 24744 | -3/Quarantine | Spotted Fortress 24792 | -3/Quarantine | Discovered new exit (range 5) 24792 | -3/Quarantine | Discovered new exit (range 6) 24792 | -3/Quarantine | Spotted Quarantine Guard 24792 | -3/Quarantine | Spotted Quarantine Guard 24800 | -3/Quarantine | Entered Section 7 24801 | -3/Section 7 | Detected hypermatrix surge 24801 | -3/Section 7 | Sensed 18 artifacts in vicinity 24820 | -3/Section 7 | Found Microwarp Drive 24935 | -3/Section 7 | Spotted S7 Guard 24941 | -3/Section 7 | Found Core Regenerator 24983 | -3/Section 7 | Crushed by falling debris 25019 | -3/Section 7 | Spotted S7 Guard 25024 | -3/Section 7 | Found Core Physics Calibrator 25032 | -3/Section 7 | Spotted Alpha 7 25034 | -3/Section 7 | Spotted Alpha 7 25035 | -3/Section 7 | Spotted B-99 Colossus 25051 | -3/Section 7 | Found Integrated Reactor 25051 | -3/Section 7 | Installed Integrated Reactor, increased core energy generation (+10) 25075 | -3/Section 7 | Spotted Striker 25077 | -3/Section 7 | Spotted Striker 25082 | -3/Section 7 | Spotted Executioner 25082 | -3/Section 7 | Spotted Executioner 25086 | -3/Section 7 | Used Terrabomb 25086 | -3/Section 7 | Spotted Striker 25086 | -3/Section 7 | Spotted Striker 25093 | -3/Section 7 | Found Sigix Shearcannon 25105 | -3/Section 7 | Integrated with Sigix Exoskeleton 25106 | -3/Section 7 | Sigix Warrior commented on Exoskeleton integration 25117 | -3/Section 7 | Warped through subspace 25118 | -3/Section 7 | Core integrity fell below 50% 25127 | -3/Section 7 | Lost 4 parts (2p1n1w) 25130 | -3/Section 7 | Spotted Executioner 25130 | -3/Section 7 | Spotted Executioner 25180 | -3/Section 7 | Spotted S7 Guard 25184 | -3/Section 7 | Found Core Membrane 25184 | -3/Section 7 | Installed Core Membrane, gained immunity to corruption 25211 | -3/Section 7 | Spotted Investigator 25211 | -3/Section 7 | Scanned by Researcher 25212 | -3/Section 7 | Intercept squad dispatched 25212 | -3/Section 7 | Spotted Tracker 25214 | -3/Section 7 | Spotted Combat Programmer 25214 | -3/Section 7 | Spotted Tracker 25216 | -3/Section 7 | Destroyed Investigator 25231 | -3/Section 7 | Sigix Exoskeleton integrity reduced to 80% 25233 | -3/Section 7 | Entered Research 25233 | -2/Research | Evolved 2 slots: Utility x2 25238 | -2/Research | Emitted hypermatrix ping 25243 | -2/Research | Assembled emerged from beneath the floor 25343 | -2/Research | Identified exit to DSF 25344 | -2/Research | Entered DSF 25349 | -2/DSF | Emitted hypermatrix ping 25354 | -2/DSF | Assembled emerged from beneath the floor 25357 | -2/DSF | Additional patrols routed to DSF 25398 | -2/DSF | Build established: Alien-Sigix 25442 | -2/DSF | Discovered new exit (range 18) 25453 | -2/DSF | Assembled emerged from beneath the floor 25458 | -2/DSF | Found Prototype Device 25458 | -2/DSF | Identified Active Sensor Suite 25491 | -2/DSF | Sterilization system engaged 25511 | -2/DSF | Ambient heat levels rising (+10) 25526 | -2/DSF | Ambient heat levels rising (+10) 25541 | -2/DSF | Ambient heat levels rising (+10) 25556 | -2/DSF | Ambient heat levels rising (+10) 25571 | -2/DSF | Ambient heat levels rising (+10) 25586 | -2/DSF | Ambient heat levels rising (+10) 25601 | -2/DSF | Ambient heat levels rising (+10) 25616 | -2/DSF | Ambient heat levels rising (+10) 25631 | -2/DSF | Ambient heat levels rising (+10) 25646 | -2/DSF | Ambient heat levels rising (+10) 25656 | -2/DSF | Entered Access 25656 | -1/Access | Evolved 2 slots: Utility x2 25661 | -1/Access | Emitted hypermatrix ping 25666 | -1/Access | Assembled emerged from beneath the floor 25711 | -1/Access | Energy Cycler disabled 25754 | -1/Access | Assembled emerged from beneath the floor 25781 | -1/Access | Assembled emerged from beneath the floor 25799 | -1/Access | Spotted B-99 Colossus 25800 | -1/Access | Assembled emerged from beneath the floor 25834 | -1/Access | Lost 6 allies 25894 | -1/Access | Discovered new exit (range 18) 25903 | -1/Access | Spotted B-99 Colossus 25937 | -1/Access | Entered Command 25942 | -1/Command | Emitted hypermatrix ping 25947 | -1/Command | Assembled emerged from beneath the floor 26031 | -1/Command | Destroyed 8 combat bots 26048 | -1/Command | Spotted Combat Programmer 26049 | -1/Command | Spotted Combat Programmer 26051 | -1/Command | Destroyed Combat Programmer 26057 | -1/Command | Destroyed Combat Programmer 26089 | -1/Command | Spotted M Guard 26089 | -1/Command | Spotted M Guard 26127 | -1/Command | Assembled emerged from beneath the floor 26221 | -1/Command | Crushed by falling debris 26228 | -1/Command | Assembled emerged from beneath the floor 26252 | -1/Command | Lost 3 parts (3u) 26263 | -1/Command | Lost 4 allies 26270 | -1/Command | Met MAIN.C 26273 | -1/Command | 0b10 Conduit disabled 26287 | -1/Command | MAIN.C's shell transforms into a squad of autonomous robots 26287 | -1/Command | Destroyed MAIN.C Shell 26287 | -1/Command | Spotted M Shell/Def 26287 | -1/Command | Spotted M Shell/Atk 26287 | -1/Command | Spotted M Shell/Def 26287 | -1/Command | Spotted M Shell/Atk 26287 | -1/Command | Spotted M Shell/Atk 26287 | -1/Command | Spotted M Shell/Def 26287 | -1/Command | Spotted M Shell/Def 26287 | -1/Command | Spotted M Shell/Atk 26289 | -1/Command | MAIN.C activated Command garrisons 26294 | -1/Command | Sigix Exoskeleton integrity reduced to 60% 26312 | -1/Command | Core integrity fell below 50% 26316 | -1/Command | Sigix Exoskeleton integrity reduced to 40% 26329 | -1/Command | Used Core Regenerator, restored core integrity (+400) 26335 | -1/Command | Used Subatomic Replicator to replicate Sigix Containment Pod 26338 | -1/Command | Spotted B-99 Colossus 26338 | -1/Command | Spotted Alpha 7 26338 | -1/Command | Spotted Striker 26338 | -1/Command | Spotted Executioner 26338 | -1/Command | Spotted Executioner 26338 | -1/Command | Spotted Alpha 7 26338 | -1/Command | Spotted Striker 26338 | -1/Command | Spotted Executioner 26338 | -1/Command | Spotted Executioner 26338 | -1/Command | Spotted B-99 Colossus 26339 | -1/Command | Discovered new exit (range 4) 26340 | -1/Command | Sigix Exoskeleton integrity reduced to 20% 26340 | *** | Destroyed 0b10! Last Messages --------------- 26337_ Knocked back. 26338_ Microwarped (distance 23). 26339_ EXIT=FOUND 26339_ Access Shell breached. 26339_ Slug penetrates Wall. 26339_ Slug penetrates B-99 Colossus. 26339_ Knocked back. 26339_ Slug penetrates Access Shell. 26339_ Penetrated by Slug. 26339_ Slug penetrates Wall. 26339_ Slug penetrates B-99 Colossus. 26339_ Microwarped (distance 5). 26339_ Penetrated by Slug. 26340_ Exo-853F: "Integrity reduced to 20%, immediate ERK application recommended to prevent critical system failure." 26340_ Slug penetrates Access Shell. 26340_ Penetrated by Slug. 26340_ Slug penetrates Access Shell. [Achievement: Payload Armed] [Achievement: Winner's Signature] Map ----- +----------------------------------------------------+ | ################ === # ## | | ################### # # ## | | #################### ! # # | | ####################### # == ## | | ####################### # # == !## | | ####################### # ####+####### | | ####################### ############# ####### | | ####################### ############# ####### | | ######## #######++++############# ####### | | ########! * ###### ############ ####### | | ### # *###### ############ ####### | | ### " # "" ##### ^ ########### ####### | | ?## + """" ######7 7############ ####### | | ??# # """" ##### R^ ########### ####### | | ???? ##! "" ######K ############+####### | | ????? ## ##### ##### ###### | | ???????? = ###### K###### ###### | | ????????####+######## E E #####" ###### | | ????????#### #########E E######"" ! ###### | | ????????#### ######BB % BB###"" ###### | | ????????#### ######BB BB###"" ###### | | ???????##### ###### ###"" ###### | | ????????#### ###### "" " ###"T # | | ????????#### ###### " " ###"" k + | | ????????####+###### " "" " ###"" # | | ????????# ### " "X " ###"" # | | ????????# ### " " ###"" # | | ????????? ""### """" ###" # | | ????????? ""### ### ! # | | ????????? ""### ### # | | ????????? T### ### # "" | | ????????? ! ""################## # ? """ | | ?????????? ""################## #???"T | | ?????????? ""###########################?????" | | ?????????? ###########################?????? | | ??????????? ##########################???????? | | ????????????###+#########################????????? | | ????????????# R g R ????????? | | ????????????? g ?????????? | | ?????????????? g ??????????? | | ??????????????? hh g ???????????? | | ?????????????????############+######?????????????? | | ?????????????????? ## = ??????????????? | | ????????????????????? ?????????????????? | | ?????????????????????????? ??????????????????????? | | ?????????????????????????????????????????????????? | | ?????????????????????????????????????????????????? | | ?????????????????????????????????????????????????? | | ?????????????????????????????????????????????????? | | ?????????????????????????????????????????????????? | +----------------------------------------------------+ Best States ------------- Heat Dissipation 143 Energy Generation 91 Energy Capacity 450 Matter Stores 300 Matter Capacity 300 Sight Range 22 Robot Scan Range 20 Terrain Scan Range 20 Terrain Scan Density 10 ECM Strength 2 Jamming Range 14 Cloak Strength 3 Power Amplification 40 Additional Mass Support 16 Corruption Block 20 Armor Coverage 800 Resistance: KI 50 Resistance: TH 50 Resistance: EX 50 Resistance: EM 50 Resistance: I 50 Resistance: S 50 Resistance: P 50 Propulsion Shielding 90 Phase Shifting 15 Evasion (%) 79 Targeting Accuracy 20 Core Analysis 6 Recoil Reduction 4 Offensive Hacking 38 Defensive Hacking 10 Authchip Count 3 Item Schematics ----------------- None Robot Schematics ------------------ None Fabricated ------------ Lrn. Missile Launcher | x1 | -5/Factory Antigrav Array | x1 | -5/Factory | Authchip Antigrav Array | x1 | -5/Factory | Authchip Launcher Loader | x2 | -5/Factory Cld. Gravmag System | x1 | -4/Factory | Authchip Cld. Gravmag System | x1 | -4/Factory | Authchip Tiamat Missile Launcher | x1 | -4/Factory | Authchip Cld. Gravmag System | x1 | -4/Factory Cld. Gravmag System | x1 | -4/Factory | Authchip Tiamat Missile Launcher | x1 | -4/Factory | Authchip Repaired ---------- VTOL Module | 24% | -6/Factory Antigrav Array | 52% | -5/Factory Antigrav Array | 50% | -4/Factory Cmb. Linear Gravjet | 24% | -3/Quarantine Studied --------- None Alien Tech Used ----------------- Dimensional Node Initializer Integrated Reactor Core Reset Matrix Microwarp Drive Terrabomb Sigix Exoskeleton Sigix Sheargun Transdimensional Reconstructor Core Membrane Sigix Shearcannon Core Physics Calibrator Core Regenerator Subatomic Replicator Achievements -------------- Hot Goods Payload Armed Sacrificial Teamwork Window Shopping Winner's Signature Challenges ------------ None Game ------ Seed SixPropulsionWheel Manual? 0 Play Time 05:20:04 Cumulative 421.2 hours Start 2026.04.20 @ 04:38:44 End 2026.04.21 @ 05:15:44 Sessions 5 Manual Loads 0 Difficulty Rogue Special Mode None Game No. 157 Rogue 156 Adventurer 1 Explorer 0 Win Type 3 Total 17 Types 6/2/2/1/1/0/3/1/0/1 Lore% 64 Gallery% 81 Achievement% 72 Wizard Run 0 Options --------- Layout 0 ASCII 0 Keyboard 0 Movement Arrows Keybinds 0 Fullscreen 2 Font 24/Smallcaps Map View 76x50 Zoom Use 0% Tactical HUD 1 Map Filters NONE Filters NONE Steam 1 RUN: 77234353-86cc-4e18-8f1f-7b9865bb0b14